Workbook

Sheet TR147
A1: Indication of FFR results for Tender Round 147, accepted tenders will be officially notified via an issued acceptance letter.
A2: Tender Ref | D2: Company Name | E2: Tendered Unit (BMU/Unit ID) | F2: TO connection / DNO connection | G2: Generation Type | H2: Start Date | I2: End Date | J2: Tendered Period (dd.mm.yy - dd.mm.yy) | K2: Applicable FFR Capability Data Table | L2: Tendered Frames per Service Day | U2: Tendered Prices*** | X2: BMUs Only - Applicable Balancing Service (i.e. ABSVD Imbalance) YES/NO | Y2: Dynamic Providers Only | AC2: Dynamic Providers only | AJ2: Please indicate as per detail change provision if you are adding volume | AK2: Please state the accepted tender that you are stacking onto | AL2: Please state if this is an all or nothing bid. Clearly reference what lines are included in each all or nothing bid | AM2: Please indicate if this is a mutually exclusive tender | AN2: Non-Dynamic Providers | AP2: Post Code | AQ2: Comments
B3: Status | C3: Rejection Code | L3: Working Days (Mon-Fri) | O3: Saturdays | R3: Sundays/Bank Holidays | U3: Availability Fee (£/h) | V3: Nomination Fee (£/h) | W3: Window Initiation Fee (£/window) | Y3: Maximum Part Load Point (MW) | Z3: Minimum Part Load Point (MW) | AA3: Minimum MEL (MW) | AB3: Maximum SEL (MW) | AN3: Volume of Response Tendered
L4: L | M4: To | N4: Duration (h) | O4: From | P4: To | Q4: Duration (h) | R4: From | S4: To | T4: Duration (h) | AC4: Primary Response (max.) @ 0.2Hz (MW) | AD4: Primary Response (max.) @ 0.5Hz (MW) | AE4: Primary Response (max.) @ 0.8Hz (MW) | AF4: Secondary Response (max.) @ 0.2/0.2Hz (MW) | AG4: Secondary Response (max.) @ 0.5/0.5Hz (MW) | AH4: High Frequency Response (max.) @ 0.2Hz (MW) | AI4: High Frequency Response (max.) @ 0.5Hz (MW) | AN4: Automatic Response Energy Deliverable by 10s (MW) | AO4: Automatic Response Energy Deliverable by 30s (MW)
A5: 147 | D5: Example Company | E5: Ex-FFR-1 | F5: TO connection | G5: Wind | H5: =#REF! ->  | I5: =#REF! ->  | J5: =IFERROR(TEXT(H5,"DD.MM.YY")&" - "&TEXT(I5,"DD.MM.YY")&" ("&DATEDIF(H5,I5+1,"m")&" months)","Tender End Date is Before Start Date") -> Tender End Date is Before Start Date | K5: As per FFR framework agreement | L5: 2300 | M5: 700 | N5: =IF(L5>M5, (2400-L5+M5)/100, IF(AND(L5="",M5="",L5=M5), "", IF(L5=M5,24,(M5-L5)/100))) -> 8 | O5: 2300 | P5: 700 | Q5: =IF(O5>P5, (2400-O5+P5)/100, IF(AND(O5="",P5="",O5=P5), "", IF(O5=P5,24,(P5-O5)/100))) -> 8 | R5: 2300 | S5: 700 | T5: =IF(R5>S5, (2400-R5+S5)/100, IF(AND(R5="",S5="",R5=S5), "", IF(R5=S5,24,(S5-R5)/100))) -> 8 | U5: 100 | V5: 600 | W5: - | X5: - | Y5: - | Z5: - | AA5: - | AB5: - | AC5: - | AD5: - | AE5: - | AF5: - | AG5: - | AH5: - | AI5: - | AJ5: - | AK5: - | AN5: - | AO5: - | AP5: - | AQ5: -
A6: =A5 -> 147 | D6: Example Company | E6: =E5 -> Ex-FFR-1 | F6: DNO connection | G6: Gas | H6: =H5 ->  | I6: =I5 ->  | J6: =IFERROR(TEXT(H6,"DD.MM.YY")&" - "&TEXT(I6,"DD.MM.YY")&" ("&DATEDIF(H6,I6+1,"m")&" months)","Tender End Date is Before Start Date") -> Tender End Date is Before Start Date | K6: As per FFR framework agreement | L6: 700 | M6: 2300 | N6: =IF(L6>M6, (2400-L6+M6)/100, IF(AND(L6="",M6="",L6=M6), "", IF(L6=M6,24,(M6-L6)/100))) -> 16 | O6: 700 | P6: 2300 | Q6: =IF(O6>P6, (2400-O6+P6)/100, IF(AND(O6="",P6="",O6=P6), "", IF(O6=P6,24,(P6-O6)/100))) -> 16 | R6: 700 | S6: 2300 | T6: =IF(R6>S6, (2400-R6+S6)/100, IF(AND(R6="",S6="",R6=S6), "", IF(R6=S6,24,(S6-R6)/100))) -> 16 | U6: 600 | V6: 100 | W6: - | X6: - | Y6: - | Z6: - | AA6: - | AB6: - | AC6: - | AD6: - | AE6: - | AF6: - | AG6: - | AH6: - | AI6: - | AJ6: - | AK6: - | AN6: - | AO6: - | AP6: - | AQ6: -
A7: =A5+0.001 -> 147.001 | B7: Accepted | C7: NA | D7: GRIDRESERVE LIMITED | E7: NSFE02 | F7: DNO connection | G7: Battery | H7: 2022-03-31 | I7: 2022-04-30 | J7: 31.03.22 - 30.04.22 (1 months) | K7: As per FFR framework agreement | L7: 2300 | M7: 1500 | N7: =IF(L7>M7, (2400-L7+M7)/100, IF(AND(L7="",M7="",L7=M7), "", IF(L7=M7,24,(M7-L7)/100))) -> 16 | Q7: =IF(O7>P7, (2400-O7+P7)/100, IF(AND(O7="",P7="",O7=P7), "", IF(O7=P7,24,(P7-O7)/100))) ->  | T7: =IF(R7>S7, (2400-R7+S7)/100, IF(AND(R7="",S7="",R7=S7), "", IF(R7=S7,24,(S7-R7)/100))) ->  | U7: 372.36 | X7: YES | AC7: 11.6 | AD7: 29 | AE7: 29 | AF7: 11.6 | AG7: 29 | AH7: 11.6 | AI7: 29 | AP7: EH48
A8: =A7+0.001 -> 147.002 | B8: Accepted | C8: NA | D8: GRIDRESERVE LIMITED | E8: NSFE02 | F8: DNO connection | G8: Battery | H8: 2022-04-01 | I8: 2022-04-30 | J8: 01.04.22 - 30.04.22 (1 months) | K8: As per FFR framework agreement | L8: 1500 | M8: 2300 | N8: 8 | U8: 784.74 | X8: YES | AC8: 11.6 | AD8: 29 | AE8: 29 | AF8: 11.6 | AG8: 29 | AH8: 11.6 | AI8: 29 | AP8: EH48
A9: 147.003 | B9: Accepted | C9: NA | D9: GRIDRESERVE LIMITED | E9: NSFE02 | F9: DNO connection | G9: Battery | H9: 2022-04-01 | I9: 2022-04-30 | J9: 01.04.22 - 30.04.22 (1 months) | K9: As per FFR framework agreement | O9: 2300 | P9: 1500 | Q9: 16 | R9: 2300 | S9: 1500 | T9: 16 | U9: 525.19 | X9: YES | AC9: 11.6 | AD9: 29 | AE9: 29 | AF9: 11.6 | AG9: 29 | AH9: 11.6 | AI9: 29 | AP9: EH48
A10: 147.004 | B10: Accepted | C10: NA | D10: BLOXWICH ENERGY STORAGE LIMITED | E10: ARNKB-1 | F10: DNO connection | G10: Battery | H10: 2022-03-31 | I10: 2022-04-30 | J10: 31.03.22 - 30.04.22 (1 months) | K10: As per FFR framework agreement | L10: 2300 | M10: 1500 | N10: 16 | U10: 580.97 | X10: YES | AC10: 16.4 | AD10: 41 | AE10: 41 | AF10: 16.4 | AG10: 41 | AH10: 16.4 | AI10: 41 | AP10: WS2
A11: 147.005 | B11: Rejected | C11: 2 | D11: BLOXWICH ENERGY STORAGE LIMITED | E11: ARNKB-1 | F11: DNO connection | G11: Battery | H11: 2022-04-01 | I11: 2022-04-30 | J11: 01.04.22 - 30.04.22 (1 months) | K11: As per FFR framework agreement | L11: 1500 | M11: 2300 | N11: 8 | U11: 1231.64 | X11: YES | AC11: 16.4 | AD11: 41 | AE11: 41 | AF11: 16.4 | AG11: 41 | AH11: 16.4 | AI11: 41 | AP11: WS2
A12: 147.006 | B12: Accepted | C12: NA | D12: BLOXWICH ENERGY STORAGE LIMITED | E12: ARNKB-1 | F12: DNO connection | G12: Battery | H12: 2022-04-01 | I12: 2022-04-30 | J12: 01.04.22 - 30.04.22 (1 months) | K12: As per FFR framework agreement | O12: 2300 | P12: 1500 | Q12: 16 | R12: 2300 | S12: 1500 | T12: 16 | U12: 816.72 | X12: YES | AC12: 16.4 | AD12: 41 | AE12: 41 | AF12: 16.4 | AG12: 41 | AH12: 16.4 | AI12: 41 | AP12: WS2
A13: 147.007 | B13: Rejected | C13: 2 | D13: OSSPV001 LIMITED | E13: E_ARNKB-2 | F13: DNO connection | G13: Battery | H13: 2022-03-31 | I13: 2022-04-30 | J13: 31.03.22 - 30.04.22 (1 months) | K13: As per FFR framework agreement | L13: 2300 | M13: 700 | N13: 8 | O13: 2300 | P13: 700 | Q13: 8 | R13: 2300 | S13: 700 | T13: 8 | U13: 145 | X13: YES | AC13: 4 | AD13: 10 | AE13: 10 | AF13: 4 | AG13: 10 | AH13: 4 | AI13: 10 | AP13: CM13
A14: 147.008 | B14: Rejected | C14: 2 | D14: OSSPV001 LIMITED | E14: E_ARNKB-2 | F14: DNO connection | G14: Battery | H14: 2022-04-01 | I14: 2022-04-30 | J14: 01.04.22 - 30.04.22 (1 months) | K14: As per FFR framework agreement | L14: 700 | M14: 1500 | N14: 8 | O14: 700 | P14: 1500 | Q14: 8 | R14: 700 | S14: 1500 | T14: 8 | U14: 145 | X14: YES | AC14: 4 | AD14: 10 | AE14: 10 | AF14: 4 | AG14: 10 | AH14: 4 | AI14: 10 | AP14: CM13
A15: 147.009 | B15: Accepted | C15: NA | D15: OSSPV001 LIMITED | E15: E_ARNKB-2 | F15: DNO connection | G15: Battery | H15: 2022-04-01 | I15: 2022-04-30 | J15: 01.04.22 - 30.04.22 (1 months) | K15: As per FFR framework agreement | L15: 1500 | M15: 2300 | N15: 8 | O15: 1500 | P15: 2300 | Q15: 8 | R15: 1500 | S15: 2300 | T15: 8 | U15: 255 | X15: YES | AC15: 4 | AD15: 10 | AE15: 10 | AF15: 4 | AG15: 10 | AH15: 4 | AI15: 10 | AP15: CM13
A16: 147.01 | B16: Accepted | C16: NA | D16: ATTUNE ENERGY | E16: ERNES-1 | F16: DNO connection | G16: Bio Fuel | H16: 2022-04-01 | I16: 2022-04-30 | J16: 01.04.22 - 30.04.22 (1 months) | K16: As per FFR framework agreement | L16: 1500 | M16: 1900 | N16: 4 | U16: 74.99 | AO16: 20 | AP16: PL5
A17: 147.011 | B17: Accepted | C17: NA | D17: FLEXIBLE GENERATION | E17: CRMU-1 | F17: DNO connection | G17: Bio Fuel | H17: 2022-04-01 | I17: 2022-04-30 | J17: 01.04.22 - 30.04.22 (1 months) | K17: As per FFR framework agreement | L17: 1500 | M17: 1900 | N17: 4 | U17: 75 | AO17: 20 | AP17: NP11
A18: 147.012 | B18: Accepted | C18: NA | D18: FLEXIBLE GENERATION | E18: CRMU-1 | F18: DNO connection | G18: Bio Fuel | H18: 2022-04-01 | I18: 2022-04-30 | J18: 01.04.22 - 30.04.22 (1 months) | K18: As per FFR framework agreement | L18: 2300 | M18: 300 | N18: 4 | O18: 2300 | P18: 300 | Q18: 4 | R18: 2300 | S18: 300 | T18: 4 | U18: 75.01 | AO18: 20 | AP18: NP11
A19: 147.013 | B19: Accepted | C19: NA | D19: PRECISE ENERGY | E19: STOWA-1 | F19: DNO connection | G19: Bio Fuel | H19: 2022-04-01 | I19: 2022-04-30 | J19: 01.04.22 - 30.04.22 (1 months) | K19: As per FFR framework agreement | L19: 1500 | M19: 1900 | N19: 4 | U19: 76 | AO19: 20 | AP19: IP14
A20: 147.014 | B20: Accepted | C20: NA | D20: PRECISE ENERGY | E20: STOWA-1 | F20: DNO connection | G20: Bio Fuel | H20: 2022-04-01 | I20: 2022-04-30 | J20: 01.04.22 - 30.04.22 (1 months) | K20: As per FFR framework agreement | L20: 2300 | M20: 300 | N20: 4 | O20: 2300 | P20: 300 | Q20: 4 | R20: 2300 | S20: 300 | T20: 4 | U20: 75 | AO20: 20 | AP20: IP14
A21: =A20+0.001 -> 147.015 | B21: Accepted | C21: NA | D21: VALENCE POWER | E21: STOWB-1 | F21: DNO connection | G21: Bio Fuel | H21: 2022-04-01 | I21: 2022-04-30 | J21: 01.04.22 - 30.04.22 (1 months) | K21: As per FFR framework agreement | L21: 1500 | M21: 1900 | N21: 4 | U21: 76.01 | AO21: 20 | AP21: IP14
A22: 147.016 | B22: Accepted | C22: NA | D22: VALENCE POWER | E22: STOWB-1 | F22: DNO connection | G22: Bio Fuel | H22: 2022-04-01 | I22: 2022-04-30 | J22: 01.04.22 - 30.04.22 (1 months) | K22: As per FFR framework agreement | L22: 2300 | M22: 300 | N22: 4 | O22: 2300 | P22: 300 | Q22: 4 | R22: 2300 | S22: 300 | T22: 4 | U22: 75.01 | AO22: 20 | AP22: IP14
A23: 147.017 | B23: Accepted | C23: NA | D23: BALANCE POWER | E23: IPSWA-1 | F23: DNO connection | G23: Bio Fuel | H23: 2022-04-01 | I23: 2022-04-30 | J23: 01.04.22 - 30.04.22 (1 months) | K23: As per FFR framework agreement | L23: 1500 | M23: 1900 | N23: 4 | U23: 75.5 | AO23: 20 | AP23: IP3
A24: 147.018 | B24: Accepted | C24: NA | D24: BALANCE POWER | E24: IPSWA-1 | F24: DNO connection | G24: Bio Fuel | H24: 2022-04-01 | I24: 2022-04-30 | J24: 01.04.22 - 30.04.22 (1 months) | K24: As per FFR framework agreement | L24: 2300 | M24: 300 | N24: 4 | O24: 2300 | P24: 300 | Q24: 4 | R24: 2300 | S24: 300 | T24: 4 | U24: 75.1 | AO24: 20 | AP24: IP3
A25: 147.019 | B25: Rejected | C25: 2 | D25: Centrica Brigg Ltd | E25: ROOSB-1 | F25: DNO connection | G25: Battery | H25: 2022-03-31 | I25: 2022-04-30 | J25: 31.03.22 - 30.04.22 (1 months) | K25: As per FFR framework agreement | L25: 2300 | M25: 2300 | N25: =IF(L25>M25, (2400-L25+M25)/100, IF(AND(L25="",M25="",L25=M25), "", IF(L25=M25,24,(M25-L25)/100))) -> 24 | O25: 2300 | P25: 2300 | Q25: =IF(O25>P25, (2400-O25+P25)/100, IF(AND(O25="",P25="",O25=P25), "", IF(O25=P25,24,(P25-O25)/100))) -> 24 | R25: 2300 | S25: 2300 | T25: =IF(R25>S25, (2400-R25+S25)/100, IF(AND(R25="",S25="",R25=S25), "", IF(R25=S25,24,(S25-R25)/100))) -> 24 | U25: 902 | X25: Yes | AC25: 17.6 | AD25: 44 | AE25: 44 | AF25: 17.6 | AG25: 44 | AH25: 17.6 | AI25: 44 | AL25: A | AP25: LA13
A26: 147.02 | B26: Accepted | C26: NA | D26: REstore Flexpond UK Ltd | E26: REST-1 | F26: DNO connection | G26: Multiple Fuel Type | H26: 2022-03-31 | I26: 2022-04-30 | J26: 31.03.22 - 30.04.22 (1 months) | K26: As per FFR framework agreement | L26: 2300 | M26: 2300 | N26: 24 | O26: 2300 | P26: 2300 | Q26: 24 | R26: 2300 | S26: 2300 | T26: 24 | U26: 45.55 | X26: No | AC26: 2 | AD26: 5 | AE26: 5 | AF26: 2 | AG26: 5 | AH26: 2 | AI26: 5 | AL26: A | AM26: Mutually Exclusive to B + C | AP26: Various
A27: 147.021 | B27: Rejected | C27: 4 | D27: REstore Flexpond UK Ltd | E27: REST-1 | F27: DNO connection | G27: Multiple Fuel Type | H27: 2022-03-31 | I27: 2022-04-30 | J27: 31.03.22 - 30.04.22 (1 months) | K27: As per FFR framework agreement | L27: 2300 | M27: 1500 | N27: 16 | O27: 2300 | P27: 1500 | Q27: 16 | R27: 2300 | S27: 1500 | T27: 16 | U27: 50.55 | X27: No | AC27: 2 | AD27: 5 | AE27: 5 | AF27: 2 | AG27: 5 | AH27: 2 | AI27: 5 | AL27: B | AM27: Mutually Exclusive to A | AP27: Various
A28: 147.022 | B28: Rejected | C28: 4 | D28: REstore Flexpond UK Ltd | E28: REST-1 | F28: DNO connection | G28: Multiple Fuel Type | H28: 2022-04-01 | I28: 2022-04-30 | J28: 01.04.22 - 30.04.22 (1 months) | K28: As per FFR framework agreement | L28: 1500 | M28: 2300 | N28: 8 | O28: 1500 | P28: 2300 | Q28: 8 | R28: 1500 | S28: 2300 | T28: 8 | U28: 91.75 | X28: No | AC28: 2 | AD28: 5 | AE28: 5 | AF28: 2 | AG28: 5 | AH28: 2 | AI28: 5 | AL28: C | AM28: Mutually Exclusive to A | AP28: Various
A29: 147.023 | B29: Rejected | C29: 2 | D29: Centrica Business Solutions Uk Optimisation UK Ltd | E29: V__LCEND001 | F29: DNO connection | G29: DSF: Storage (for export) | H29: 2022-03-31 | I29: 2022-04-30 | J29: 31.03.22 - 30.04.22 (1 months) | K29: As per FFR framework agreement | L29: 2300 | M29: 2300 | N29: 24 | O29: 2300 | P29: 2300 | Q29: 24 | R29: 2300 | S29: 2300 | T29: 24 | U29: 9.11 | X29: Yes | AC29: 0.4 | AD29: 1 | AE29: 1 | AF29: 0.4 | AG29: 1 | AH29: 0.4 | AI29: 1 | AL29: A | AM29: Mutually Exclusive to B + C | AP29: TR27
A30: 147.024 | B30: Rejected | C30: 2 | D30: Centrica Business Solutions Uk Optimisation UK Ltd | E30: V__LCEND001 | F30: DNO connection | G30: DSF: Storage (for export) | H30: 2022-03-31 | I30: 2022-04-30 | J30: 31.03.22 - 30.04.22 (1 months) | K30: As per FFR framework agreement | L30: 2300 | M30: 1500 | N30: 16 | O30: 2300 | P30: 1500 | Q30: 16 | R30: 2300 | S30: 1500 | T30: =IF(R30>S30, (2400-R30+S30)/100, IF(AND(R30="",S30="",R30=S30), "", IF(R30=S30,24,(S30-R30)/100))) -> 16 | U30: 10.11 | X30: Yes | AC30: 0.4 | AD30: 1 | AE30: 1 | AF30: 0.4 | AG30: 1 | AH30: 0.4 | AI30: 1 | AL30: B | AM30: Mutually Exclusive to A | AP30: TR27
A31: 147.025 | B31: Rejected | C31: 2 | D31: Centrica Business Solutions Uk Optimisation UK Ltd | E31: V__LCEND001 | F31: DNO connection | G31: DSF: Storage (for export) | H31: 2022-04-01 | I31: 2022-04-30 | J31: 01.04.22 - 30.04.22 (1 months) | K31: As per FFR framework agreement | L31: 1500 | M31: 2300 | N31: =IF(L31>M31, (2400-L31+M31)/100, IF(AND(L31="",M31="",L31=M31), "", IF(L31=M31,24,(M31-L31)/100))) -> 8 | O31: 1500 | P31: 2300 | Q31: =IF(O31>P31, (2400-O31+P31)/100, IF(AND(O31="",P31="",O31=P31), "", IF(O31=P31,24,(P31-O31)/100))) -> 8 | R31: 1500 | S31: 2300 | T31: 8 | U31: 18.35 | X31: Yes | AC31: 0.4 | AD31: 1 | AE31: 1 | AF31: 0.4 | AG31: 1 | AH31: 0.4 | AI31: 1 | AL31: C | AM31: Mutually Exclusive to A | AP31: TR27
A32: 147.026 | B32: Rejected | C32: 2 | D32: Centrica Business Solutions Uk Optimisation UK Ltd | E32: V__BCEND002 | F32: DNO connection | G32: DSF: Storage (for export) | H32: 2022-03-31 | I32: 2022-04-30 | J32: =IFERROR(TEXT(H32,"DD.MM.YY")&" - "&TEXT(I32,"DD.MM.YY")&" ("&DATEDIF(H32,I32+1,"m")&" months)","Tender End Date is Before Start Date") -> 31.03.22 - 30.04.22 (1 months) | K32: As per FFR framework agreement | L32: 2300 | M32: 2300 | N32: 24 | O32: 2300 | P32: 2300 | Q32: 24 | R32: 2300 | S32: 2300 | T32: 24 | U32: 184.5 | X32: Yes | AC32: 3.6 | AD32: 9 | AE32: 9 | AF32: 3.6 | AG32: 9 | AH32: 3.6 | AI32: 9 | AL32: A | AM32: Mutually Exclusive to B + C | AP32: LN1 2
A33: 147.027 | B33: Rejected | C33: 2 | D33: Centrica Business Solutions Uk Optimisation UK Ltd | E33: V__BCEND002 | F33: DNO connection | G33: DSF: Storage (for export) | H33: 2022-03-31 | I33: 2022-04-30 | J33: =IFERROR(TEXT(H33,"DD.MM.YY")&" - "&TEXT(I33,"DD.MM.YY")&" ("&DATEDIF(H33,I33+1,"m")&" months)","Tender End Date is Before Start Date") -> 31.03.22 - 30.04.22 (1 months) | K33: As per FFR framework agreement | L33: 2300 | M33: 1500 | N33: =IF(L33>M33, (2400-L33+M33)/100, IF(AND(L33="",M33="",L33=M33), "", IF(L33=M33,24,(M33-L33)/100))) -> 16 | O33: 2300 | P33: 1500 | Q33: =IF(O33>P33, (2400-O33+P33)/100, IF(AND(O33="",P33="",O33=P33), "", IF(O33=P33,24,(P33-O33)/100))) -> 16 | R33: 2300 | S33: 1500 | T33: =IF(R33>S33, (2400-R33+S33)/100, IF(AND(R33="",S33="",R33=S33), "", IF(R33=S33,24,(S33-R33)/100))) -> 16 | U33: 198 | X33: Yes | AC33: 3.6 | AD33: 9 | AE33: 9 | AF33: 3.6 | AG33: 9 | AH33: 3.6 | AI33: 9 | AL33: B | AM33: Mutually Exclusive to A | AP33: LN1 2
A34: 147.028 | B34: Rejected | C34: 2 | D34: Centrica Business Solutions Uk Optimisation UK Ltd | E34: V__BCEND002 | F34: DNO connection | G34: DSF: Storage (for export) | H34: 2022-04-01 | I34: 2022-04-30 | J34: 01.04.22 - 30.04.22 (1 months) | K34: As per FFR framework agreement | L34: 1500 | M34: 2300 | N34: 8 | O34: 1500 | P34: 2300 | Q34: 8 | R34: 1500 | S34: 2300 | T34: 8 | U34: 395 | X34: Yes | AC34: 3.6 | AD34: 9 | AE34: 9 | AF34: 3.6 | AG34: 9 | AH34: 3.6 | AI34: 9 | AL34: C | AM34: Mutually Exclusive to A | AP34: LN1 2
A35: 147.029 | B35: Accepted | C35: NA | D35: Centrica Business Solutions Uk Optimisation UK Ltd | E35: CBSO-2 | F35: DNO connection | G35: DSF: Distributed generation (for export) | H35: 2022-03-31 | I35: 2022-04-30 | J35: 31.03.22 - 30.04.22 (1 months) | K35: As per FFR framework agreement | L35: 2300 | M35: 700 | N35: =IF(L35>M35, (2400-L35+M35)/100, IF(AND(L35="",M35="",L35=M35), "", IF(L35=M35,24,(M35-L35)/100))) -> 8 | O35: 2300 | P35: 700 | Q35: =IF(O35>P35, (2400-O35+P35)/100, IF(AND(O35="",P35="",O35=P35), "", IF(O35=P35,24,(P35-O35)/100))) -> 8 | R35: 2300 | S35: 700 | T35: 8 | U35: 26.6 | X35: No | AL35: A | AO35: 7 | AP35: BS2 8
A36: 147.03 | B36: Accepted | C36: NA | D36: Centrica Business Solutions Uk Optimisation UK Ltd | E36: CBSO-2 | F36: DNO connection | G36: DSF: Distributed generation (for export) | H36: 2022-04-01 | I36: 2022-04-30 | J36: 01.04.22 - 30.04.22 (1 months) | K36: As per FFR framework agreement | L36: 700 | M36: 1500 | N36: 8 | O36: 700 | P36: 1500 | Q36: 8 | R36: 700 | S36: 1500 | T36: 8 | U36: 26.6 | X36: No | AL36: B | AO36: 7 | AP36: BS2 8
A37: 147.031 | B37: Accepted | C37: NA | D37: Centrica Business Solutions Uk Optimisation UK Ltd | E37: CBSO-2 | F37: DNO connection | G37: DSF: Distributed generation (for export) | H37: 2022-04-01 | I37: 2022-04-30 | J37: 01.04.22 - 30.04.22 (1 months) | K37: As per FFR framework agreement | L37: 1500 | M37: 2300 | N37: 8 | O37: 1500 | P37: 2300 | Q37: 8 | R37: 1500 | S37: 2300 | T37: 8 | U37: 26.6 | X37: No | AL37: C | AO37: 7 | AP37: BS2 8
A38: 147.032 | B38: Accepted | C38: NA | D38: City Energy Management Services Ltd. | E38: CMFH-1 | F38: DNO connection | G38: DSF: Load response | H38: 2022-03-31 | I38: 2022-04-30 | J38: 31.03.22 - 30.04.22 (1 months) | K38: As per FFR framework agreement | L38: 2300 | M38: 1100 | N38: 12 | O38: 2300 | P38: 1100 | Q38: 12 | R38: 2300 | S38: 1100 | T38: 12 | U38: 3.95 | AO38: 1
A39: 147.033 | B39: Accepted | C39: NA | D39: City Energy Management Services Ltd. | E39: CMFH-1 | F39: DNO connection | G39: DSF: Load response | H39: 2022-04-01 | I39: 2022-04-30 | J39: 01.04.22 - 30.04.22 (1 months) | K39: As per FFR framework agreement | L39: 1100 | M39: 1500 | N39: 4 | O39: 1100 | P39: 1500 | Q39: 4 | R39: 1100 | S39: 1500 | T39: 4 | U39: 7.9 | AO39: 2
A40: 147.034 | B40: Accepted | C40: NA | D40: City Energy Management Services Ltd. | E40: CMFH-1 | F40: DNO connection | G40: DSF: Load response | H40: 2022-04-01 | I40: 2022-04-30 | J40: 01.04.22 - 30.04.22 (1 months) | K40: As per FFR framework agreement | L40: 1900 | M40: 2300 | N40: 4 | O40: 1900 | P40: 2300 | Q40: 4 | R40: 1900 | S40: 2300 | T40: 4 | U40: 7.9 | AO40: 2
A41: 147.035 | B41: Accepted | C41: NA | D41: EDF Energy Customers Limited | E41: EDFE-4 | F41: DNO connection | G41: DSF: Storage (for export) | H41: 2022-03-31 | I41: 2022-04-30 | J41: 31.03.22 - 30.04.22 (1 months) | K41: As per FFR framework agreement | L41: 2300 | M41: 2300 | N41: 24 | O41: 2300 | P41: 2300 | Q41: 24 | R41: 2300 | S41: 2300 | T41: 24 | U41: 68.94 | AC41: 2.4 | AD41: 6 | AE41: 6 | AF41: 2.4 | AG41: 6 | AH41: 2.4 | AI41: 6 | AP41: MK45
A42: 147.036 | B42: Accepted | C42: NA | D42: EDF Energy Customers Limited | E42: EDFE-8 | F42: DNO connection | G42: DSF: Storage (for export) | H42: 2022-03-31 | I42: 2022-04-30 | J42: 31.03.22 - 30.04.22 (1 months) | K42: As per FFR framework agreement | L42: 2300 | M42: 700 | N42: 8 | O42: 2300 | P42: 700 | Q42: 8 | R42: 2300 | S42: 700 | T42: 8 | U42: 195 | AC42: 8 | AD42: 20 | AE42: 20 | AF42: 8 | AG42: 20 | AH42: 8 | AI42: 20 | AP42: SY8 2
A43: 147.037 | B43: Accepted | C43: NA | D43: EDF Energy Customers Limited | E43: EDFE-8 | F43: DNO connection | G43: DSF: Storage (for export) | H43: 2022-04-01 | I43: 2022-04-30 | J43: 01.04.22 - 30.04.22 (1 months) | K43: As per FFR framework agreement | L43: 700 | M43: 1500 | N43: 8 | O43: 700 | P43: 1500 | Q43: 8 | R43: 700 | S43: 1500 | T43: 8 | U43: 240 | AC43: 8 | AD43: 20 | AE43: 20 | AF43: 8 | AG43: 20 | AH43: 8 | AI43: 20 | AP43: SY8 2
A44: 147.038 | B44: Accepted | C44: NA | D44: EDF Energy Customers Limited | E44: EDFE-8 | F44: DNO connection | G44: DSF: Storage (for export) | H44: 2022-04-01 | I44: 2022-04-30 | J44: 01.04.22 - 30.04.22 (1 months) | K44: As per FFR framework agreement | L44: 1500 | M44: 2300 | N44: 8 | O44: 1500 | P44: 2300 | Q44: 8 | R44: 1500 | S44: 2300 | T44: 8 | U44: 530 | AC44: 8 | AD44: 20 | AE44: 20 | AF44: 8 | AG44: 20 | AH44: 8 | AI44: 20 | AP44: SY8 2
A45: 147.039 | B45: Rejected | C45: 2 | D45: EDF Energy Customers Limited | E45: KEMB-1 | F45: TO connection | G45: DSF: Storage (for export) | H45: 2022-03-31 | I45: 2022-04-30 | J45: 31.03.22 - 30.04.22 (1 months) | K45: As per FFR framework agreement | L45: 2300 | M45: 700 | N45: 8 | O45: 2300 | P45: 700 | Q45: 8 | R45: 2300 | S45: 700 | T45: 8 | U45: 710.5 | X45: YES | AC45: 19.6 | AD45: 49 | AE45: 49 | AF45: 19.6 | AG45: 49 | AH45: 19.6 | AI45: 49 | AP45: ME10
A46: 147.04 | B46: Rejected | C46: 2 | D46: EDF Energy Customers Limited | E46: KEMB-1 | F46: TO connection | G46: DSF: Storage (for export) | H46: 2022-04-01 | I46: 2022-04-30 | J46: 01.04.22 - 30.04.22 (1 months) | K46: As per FFR framework agreement | L46: 700 | M46: 1500 | N46: 8 | O46: 700 | P46: 1500 | Q46: 8 | R46: 700 | S46: 1500 | T46: 8 | U46: 710.5 | X46: YES | AC46: 19.6 | AD46: 49 | AE46: 49 | AF46: 19.6 | AG46: 49 | AH46: 19.6 | AI46: 49 | AP46: ME10
A47: 147.041 | B47: Accepted | C47: NA | D47: EDF Energy Customers Limited | E47: KEMB-1 | F47: TO connection | G47: DSF: Storage (for export) | H47: 2022-04-01 | I47: 2022-04-30 | J47: 01.04.22 - 30.04.22 (1 months) | K47: As per FFR framework agreement | L47: 1500 | M47: 2300 | N47: 8 | O47: 1500 | P47: 2300 | Q47: 8 | R47: 1500 | S47: 2300 | T47: 8 | U47: 1372 | X47: YES | AC47: 19.6 | AD47: 49 | AE47: 49 | AF47: 19.6 | AG47: 49 | AH47: 19.6 | AI47: 49 | AP47: ME10
A48: 147.042 | B48: Accepted | C48: NA | D48: EDF Energy Customers Limited | E48: EDFE-2 | F48: DNO connection | G48: DSF: Storage (for export) | H48: 2022-03-31 | I48: 2022-04-30 | J48: 31.03.22 - 30.04.22 (1 months) | K48: As per FFR framework agreement | L48: 2300 | M48: 2300 | N48: 24 | O48: 2300 | P48: 2300 | Q48: 24 | R48: 2300 | S48: 2300 | T48: 24 | U48: 115.68 | AC48: 3.2 | AD48: 8 | AE48: 8 | AF48: 3.2 | AG48: 8 | AH48: 3.2 | AI48: 8 | AP48: DA1 5
A49: 147.043 | B49: Accepted | C49: NA | D49: EDF Energy Customers Limited | E49: EDFE-6 | F49: DNO connection | G49: DSF: Storage (for export) | H49: 2022-03-31 | I49: 2022-04-30 | J49: 31.03.22 - 30.04.22 (1 months) | K49: As per FFR framework agreement | L49: 2300 | M49: 2300 | N49: 24 | O49: 2300 | P49: 2300 | Q49: 24 | R49: 2300 | S49: 2300 | T49: 24 | U49: 101.29 | AC49: 2.8 | AD49: 7 | AE49: 7 | AF49: 2.8 | AG49: 7 | AH49: 2.8 | AI49: 7 | AP49: NG21
A50: 147.044 | B50: Rejected | C50: 2 | D50: EDF Energy Customers Limited | E50: AG-AEDF02 | F50: DNO connection | G50: DSF: Storage (for export) | H50: 2022-03-31 | I50: 2022-04-30 | J50: 31.03.22 - 30.04.22 (1 months) | K50: As per FFR framework agreement | L50: 2300 | M50: 1500 | N50: 16 | O50: 2300 | P50: 1500 | Q50: 16 | R50: 2300 | S50: 1500 | T50: 16 | U50: 735 | X50: YES | AC50: 19.6 | AD50: 49 | AE50: 49 | AF50: 19.6 | AG50: 49 | AH50: 15.6 | AI50: 39 | AL50: A | AP50: IP13
A51: 147.045 | B51: Rejected | C51: 2 | D51: EDF Energy Customers Limited | E51: AG-AEDF02 | F51: DNO connection | G51: DSF: Storage (for export) | H51: 2022-04-01 | I51: 2022-04-30 | J51: 01.04.22 - 30.04.22 (1 months) | K51: As per FFR framework agreement | L51: 1500 | M51: 2300 | N51: 8 | O51: 1500 | P51: 2300 | Q51: 8 | R51: 1500 | S51: 2300 | T51: 8 | U51: 1372 | X51: YES | AC51: 19.6 | AD51: 49 | AE51: 49 | AF51: 19.6 | AG51: 49 | AH51: 15.6 | AI51: 39 | AL51: A | AP51: IP13
A52: 147.046 | B52: Rejected | C52: 2 | D52: EDF Energy Customers Limited | E52: AG -GEDF01 | F52: DNO connection | G52: DSF: Storage (for export) | H52: 2022-03-31 | I52: 2022-04-30 | J52: 31.03.22 - 30.04.22 (1 months) | K52: As per FFR framework agreement | L52: 2300 | M52: 700 | N52: 8 | O52: 2300 | P52: 700 | Q52: 8 | R52: 2300 | S52: 700 | T52: 8 | U52: 290 | X52: YES | AC52: 8 | AD52: 20 | AE52: 20 | AF52: 8 | AG52: 20 | AH52: 8 | AI52: 20 | AP52: SK10
A53: 147.047 | B53: Rejected | C53: 2 | D53: EDF Energy Customers Limited | E53: AG -GEDF01 | F53: DNO connection | G53: DSF: Storage (for export) | H53: 2022-04-01 | I53: 2022-04-30 | J53: 01.04.22 - 30.04.22 (1 months) | K53: As per FFR framework agreement | L53: 700 | M53: 1500 | N53: 8 | O53: 700 | P53: 1500 | Q53: 8 | R53: 700 | S53: 1500 | T53: 8 | U53: 290 | X53: YES | AC53: 8 | AD53: 20 | AE53: 20 | AF53: 8 | AG53: 20 | AH53: 8 | AI53: 20 | AP53: SK10
A54: 147.048 | B54: Accepted | C54: NA | D54: EDF Energy Customers Limited | E54: AG -GEDF01 | F54: DNO connection | G54: DSF: Storage (for export) | H54: 2022-04-01 | I54: 2022-04-30 | J54: 01.04.22 - 30.04.22 (1 months) | K54: As per FFR framework agreement | L54: 1500 | M54: 2300 | N54: 8 | O54: 1500 | P54: 2300 | Q54: 8 | R54: 1500 | S54: 2300 | T54: 8 | U54: 540 | X54: YES | AC54: 8 | AD54: 20 | AE54: 20 | AF54: 8 | AG54: 20 | AH54: 8 | AI54: 20 | AP54: SK10
A55: 147.049 | B55: Rejected | C55: 2 | D55: EDF Energy Customers Limited | E55: AG -GEDF02 | F55: DNO connection | G55: DSF: Storage (for export) | H55: 2022-03-31 | I55: 2022-04-30 | J55: 31.03.22 - 30.04.22 (1 months) | K55: As per FFR framework agreement | L55: 2300 | M55: 700 | N55: 8 | O55: 2300 | P55: 700 | Q55: 8 | R55: 2300 | S55: 700 | T55: 8 | U55: 260 | X55: YES | AC55: 8 | AD55: 20 | AE55: 20 | AF55: 8 | AG55: 20 | AH55: 8 | AI55: 20 | AP55: BL9 5
A56: 147.05 | B56: Rejected | C56: 2 | D56: EDF Energy Customers Limited | E56: AG -GEDF02 | F56: DNO connection | G56: DSF: Storage (for export) | H56: 2022-04-01 | I56: 2022-04-30 | J56: 01.04.22 - 30.04.22 (1 months) | K56: As per FFR framework agreement | L56: 700 | M56: 1500 | N56: 8 | O56: 700 | P56: 1500 | Q56: 8 | R56: 700 | S56: 1500 | T56: 8 | U56: 260 | X56: YES | AC56: 8 | AD56: 20 | AE56: 20 | AF56: 8 | AG56: 20 | AH56: 8 | AI56: 20 | AP56: BL9 5
A57: 147.051 | B57: Accepted | C57: NA | D57: EDF Energy Customers Limited | E57: AG -GEDF02 | F57: DNO connection | G57: DSF: Storage (for export) | H57: 2022-04-01 | I57: 2022-04-30 | J57: 01.04.22 - 30.04.22 (1 months) | K57: As per FFR framework agreement | L57: 1500 | M57: 2300 | N57: 8 | O57: 1500 | P57: 2300 | Q57: 8 | R57: 1500 | S57: 2300 | T57: 8 | U57: 520 | X57: YES | AC57: 8 | AD57: 20 | AE57: 20 | AF57: 8 | AG57: 20 | AH57: 8 | AI57: 20 | AP57: BL9 5
A58: 147.052 | B58: Rejected | C58: 2 | D58: EDF Energy Customers Limited | E58: EDFE-10 | F58: DNO connection | G58: DSF: Storage (for export) | H58: 2022-03-31 | I58: 2022-04-30 | J58: 31.03.22 - 30.04.22 (1 months) | K58: As per FFR framework agreement | L58: 2300 | M58: 700 | N58: 8 | O58: 2300 | P58: 700 | Q58: 8 | R58: 2300 | S58: 700 | T58: 8 | U58: 435 | AC58: 11.6 | AD58: 29 | AE58: 29 | AF58: 11.6 | AG58: 29 | AH58: 8 | AI58: 28 | AP58: SN5 8
A59: 147.053 | B59: Rejected | C59: 2 | D59: EDF Energy Customers Limited | E59: EDFE-10 | F59: DNO connection | G59: DSF: Storage (for export) | H59: 2022-04-01 | I59: 2022-04-30 | J59: 01.04.22 - 30.04.22 (1 months) | K59: As per FFR framework agreement | L59: 700 | M59: 1500 | N59: 8 | O59: 700 | P59: 1500 | Q59: 8 | R59: 700 | S59: 1500 | T59: 8 | U59: 435 | AC59: 11.6 | AD59: 29 | AE59: 29 | AF59: 11.6 | AG59: 29 | AH59: 11.2 | AI59: 28 | AP59: SN5 8
A60: 147.054 | B60: Accepted | C60: NA | D60: EDF Energy Customers Limited | E60: EDFE-10 | F60: DNO connection | G60: DSF: Storage (for export) | H60: 2022-04-01 | I60: 2022-04-30 | J60: 01.04.22 - 30.04.22 (1 months) | K60: As per FFR framework agreement | L60: 1500 | M60: 2300 | N60: 8 | O60: 1500 | P60: 2300 | Q60: 8 | R60: 1500 | S60: 2300 | T60: 8 | U60: 870 | AC60: 11.6 | AD60: 29 | AE60: 29 | AF60: 11.6 | AG60: 29 | AH60: 11.2 | AI60: 28 | AP60: SN5 8
A61: 147.055 | B61: Accepted | C61: NA | D61: First Renewable Alpha Limited | E61: TREGN-1 | F61: DNO connection | G61: Diesel | H61: 2022-03-31 | I61: 2022-04-30 | J61: 31.03.22 - 30.04.22 (1 months) | K61: As per FFR framework agreement | L61: 2300 | M61: 700 | N61: 8 | O61: 2300 | P61: 700 | Q61: 8 | R61: 2300 | S61: 700 | T61: 8 | U61: 76 | AO61: 20 | AP61: PL32
A62: 147.056 | B62: Accepted | C62: NA | D62: First Renewable Alpha Limited | E62: TREGN-1 | F62: DNO connection | G62: Diesel | H62: 2022-04-01 | I62: 2022-04-30 | J62: 01.04.22 - 30.04.22 (1 months) | K62: As per FFR framework agreement | L62: 700 | M62: 1500 | N62: 8 | O62: 700 | P62: 1500 | Q62: 8 | R62: 700 | S62: 1500 | T62: 8 | U62: 76 | AO62: 20 | AP62: PL32
A63: 147.057 | B63: Accepted | C63: NA | D63: First Renewable Alpha Limited | E63: TREGN-1 | F63: DNO connection | G63: Diesel | H63: 2022-04-01 | I63: 2022-04-30 | J63: 01.04.22 - 30.04.22 (1 months) | K63: As per FFR framework agreement | L63: 1500 | M63: 2300 | N63: 8 | O63: 1500 | P63: 2300 | Q63: 8 | R63: 1500 | S63: 2300 | T63: 8 | U63: 76 | AO63: 20 | AP63: PL32
A64: 147.058 | B64: Accepted | C64: NA | D64: Flexitricity Limited | E64: AG-FLX00L | F64: DNO connection | G64: DSF: Storage (for export) | H64: 2022-03-31 | I64: 2022-04-30 | J64: 31.03.22 - 30.04.22 (1 months) | K64: As per FFR framework agreement | L64: 2300 | M64: 700 | N64: =IF(L64>M64, (2400-L64+M64)/100, IF(AND(L64="",M64="",L64=M64), "", IF(L64=M64,24,(M64-L64)/100))) -> 8 | O64: 2300 | P64: 700 | Q64: =IF(O64>P64, (2400-O64+P64)/100, IF(AND(O64="",P64="",O64=P64), "", IF(O64=P64,24,(P64-O64)/100))) -> 8 | R64: 2300 | S64: 700 | T64: =IF(R64>S64, (2400-R64+S64)/100, IF(AND(R64="",S64="",R64=S64), "", IF(R64=S64,24,(S64-R64)/100))) -> 8 | U64: 37.8 | V64: 0 | X64: YES | AC64: 1.6 | AD64: 4 | AE64: 4 | AF64: 1.6 | AG64: 4 | AH64: 1.6 | AI64: 4 | AP64: EX34/EX31
A65: 147.059 | B65: Accepted | C65: NA | D65: Flexitricity Limited | E65: AG-FLX00L | F65: DNO connection | G65: DSF: Storage (for export) | H65: 2022-04-01 | I65: 2022-04-30 | J65: 01.04.22 - 30.04.22 (1 months) | K65: As per FFR framework agreement | L65: 700 | M65: 1500 | N65: 8 | O65: 700 | P65: 1500 | Q65: 8 | R65: 700 | S65: 1500 | T65: 8 | U65: 40.49 | V65: 0 | X65: YES | AC65: 1.6 | AD65: 4 | AE65: 4 | AF65: 1.6 | AG65: 4 | AH65: 1.6 | AI65: 4 | AP65: EX34/EX31
A66: 147.06 | B66: Accepted | C66: NA | D66: Flexitricity Limited | E66: AG-FLX00L | F66: DNO connection | G66: DSF: Storage (for export) | H66: 2022-04-01 | I66: 2022-04-30 | J66: 01.04.22 - 30.04.22 (1 months) | K66: As per FFR framework agreement | L66: 1500 | M66: 2300 | N66: 8 | O66: 1500 | P66: 2300 | Q66: 8 | R66: 1500 | S66: 2300 | T66: 8 | U66: 91.4 | V66: 0 | X66: YES | AC66: 1.6 | AD66: 4 | AE66: 4 | AF66: 1.6 | AG66: 4 | AH66: 1.6 | AI66: 4 | AP66: EX34/EX31
A67: 147.061 | B67: Accepted | C67: NA | D67: Flexitricity Limited | E67: AG-BFLX01 | F67: DNO connection | G67: DSF: Storage (for export) | H67: 2022-03-31 | I67: 2022-04-30 | J67: =IFERROR(TEXT(H67,"DD.MM.YY")&" - "&TEXT(I67,"DD.MM.YY")&" ("&DATEDIF(H67,I67+1,"m")&" months)","Tender End Date is Before Start Date") -> 31.03.22 - 30.04.22 (1 months) | K67: As per FFR framework agreement | L67: 2300 | M67: 700 | N67: 8 | O67: 2300 | P67: 700 | Q67: 8 | R67: 2300 | S67: 700 | T67: 8 | U67: 66.08 | V67: 0 | X67: YES | AC67: 2.8 | AD67: 7 | AE67: 7 | AF67: 2.8 | AG67: 7 | AH67: 2.8 | AI67: 7 | AP67: NG32
A68: 147.062 | B68: Accepted | C68: NA | D68: Flexitricity Limited | E68: AG-BFLX01 | F68: DNO connection | G68: DSF: Storage (for export) | H68: 2022-04-01 | I68: 2022-04-30 | J68: 01.04.22 - 30.04.22 (1 months) | K68: As per FFR framework agreement | L68: 700 | M68: 1500 | N68: 8 | O68: 700 | P68: 1500 | Q68: 8 | R68: 700 | S68: 1500 | T68: 8 | U68: 75.87 | V68: 0 | X68: YES | AC68: 2.8 | AD68: 7 | AE68: 7 | AF68: 2.8 | AG68: 7 | AH68: 2.8 | AI68: 7 | AP68: NG32
A69: 147.063 | B69: Accepted | C69: NA | D69: Flexitricity Limited | E69: AG-BFLX01 | F69: DNO connection | G69: DSF: Storage (for export) | H69: 2022-04-01 | I69: 2022-04-30 | J69: 01.04.22 - 30.04.22 (1 months) | K69: As per FFR framework agreement | L69: 1500 | M69: 2300 | N69: 8 | O69: 1500 | P69: 2300 | Q69: 8 | R69: 1500 | S69: 2300 | T69: 8 | U69: 159.88 | V69: 0 | X69: YES | AC69: 2.8 | AD69: 7 | AE69: 7 | AF69: 2.8 | AG69: 7 | AH69: 2.8 | AI69: 7 | AP69: NG32
A70: 147.064 | B70: Accepted | C70: NA | D70: Flexitricity Limited | E70: AG-BFLX02 | F70: DNO connection | G70: DSF: Storage (for export) | H70: 2022-03-31 | I70: 2022-04-30 | J70: =IFERROR(TEXT(H70,"DD.MM.YY")&" - "&TEXT(I70,"DD.MM.YY")&" ("&DATEDIF(H70,I70+1,"m")&" months)","Tender End Date is Before Start Date") -> 31.03.22 - 30.04.22 (1 months) | K70: As per FFR framework agreement | L70: 2300 | M70: 700 | N70: 8 | O70: 2300 | P70: 700 | Q70: 8 | R70: 2300 | S70: 700 | T70: 8 | U70: 94.2 | V70: 0 | X70: YES | AC70: 4 | AD70: 10 | AE70: 10 | AF70: 4 | AG70: 10 | AH70: 4 | AI70: 10 | AP70: DE12
A71: 147.065 | B71: Accepted | C71: NA | D71: Flexitricity Limited | E71: AG-BFLX02 | F71: DNO connection | G71: DSF: Storage (for export) | H71: 2022-04-01 | I71: 2022-04-30 | J71: 01.04.22 - 30.04.22 (1 months) | K71: As per FFR framework agreement | L71: 700 | M71: 1500 | N71: 8 | O71: 700 | P71: 1500 | Q71: 8 | R71: 700 | S71: 1500 | T71: 8 | U71: 111.1 | V71: 0 | X71: YES | AC71: 4 | AD71: 10 | AE71: 10 | AF71: 4 | AG71: 10 | AH71: 4 | AI71: 10 | AP71: DE12
A72: =A71+0.001 -> 147.066 | B72: Accepted | C72: NA | D72: Flexitricity Limited | E72: AG-BFLX02 | F72: DNO connection | G72: DSF: Storage (for export) | H72: 2022-04-01 | I72: 2022-04-30 | J72: 01.04.22 - 30.04.22 (1 months) | K72: As per FFR framework agreement | L72: 1500 | M72: 2300 | N72: 8 | O72: 1500 | P72: 2300 | Q72: 8 | R72: 1500 | S72: 2300 | T72: 8 | U72: 228.2 | V72: 0 | X72: YES | AC72: 4 | AD72: 10 | AE72: 10 | AF72: 4 | AG72: 10 | AH72: 4 | AI72: 10 | AP72: DE12
A73: 147.067 | B73: Accepted | C73: NA | D73: Flexitricity Limited | E73: AG-EFLX01 | F73: DNO connection | G73: DSF: Storage (for export) | H73: 2022-03-31 | I73: 2022-04-30 | J73: 31.03.22 - 30.04.22 (1 months) | K73: As per FFR framework agreement | L73: 2300 | M73: 700 | N73: 8 | O73: 2300 | P73: 700 | Q73: 8 | R73: 2300 | S73: 700 | T73: 8 | U73: 178.79 | V73: 0 | X73: YES | AC73: 7.6 | AD73: 19 | AE73: 19 | AF73: 7.6 | AG73: 19 | AH73: 7.6 | AI73: 19 | AP73: HR1 4
A74: 147.068 | B74: Accepted | C74: NA | D74: Flexitricity Limited | E74: AG-EFLX01 | F74: DNO connection | G74: DSF: Storage (for export) | H74: 2022-04-01 | I74: 2022-04-30 | J74: 01.04.22 - 30.04.22 (1 months) | K74: As per FFR framework agreement | L74: 700 | M74: 1500 | N74: 8 | O74: 700 | P74: 1500 | Q74: 8 | R74: 700 | S74: 1500 | T74: 8 | U74: 210.19 | V74: 0 | X74: YES | AC74: 7.6 | AD74: 19 | AE74: 19 | AF74: 7.6 | AG74: 19 | AH74: 7.6 | AI74: 19 | AP74: HR1 4
A75: 147.069 | B75: Accepted | C75: NA | D75: Flexitricity Limited | E75: AG-EFLX01 | F75: DNO connection | G75: DSF: Storage (for export) | H75: 2022-04-01 | I75: 2022-04-30 | J75: 01.04.22 - 30.04.22 (1 months) | K75: As per FFR framework agreement | L75: 1500 | M75: 2300 | N75: 8 | O75: 1500 | P75: 2300 | Q75: 8 | R75: 1500 | S75: 2300 | T75: 8 | U75: 433.3 | V75: 0 | X75: YES | AC75: 7.6 | AD75: 19 | AE75: 19 | AF75: 7.6 | AG75: 19 | AH75: 7.6 | AI75: 19 | AP75: HR1 4
A76: 147.07 | B76: Accepted | C76: NA | D76: Flexitricity Limited | E76: AG-NFLX01 | F76: DNO connection | G76: DSF: Storage (for export) | H76: 2022-03-31 | I76: 2022-04-30 | J76: 31.03.22 - 30.04.22 (1 months) | K76: As per FFR framework agreement | L76: 2300 | M76: 700 | N76: 8 | O76: 2300 | P76: 700 | Q76: 8 | R76: 2300 | S76: 700 | T76: 8 | U76: 75.44 | V76: 0 | X76: YES | AC76: 3.2 | AD76: 8 | AE76: 8 | AF76: 3.2 | AG76: 8 | AH76: 3.2 | AI76: 8 | AP76: KY1 3
A77: 147.071 | B77: Accepted | C77: NA | D77: Flexitricity Limited | E77: AG-NFLX01 | F77: DNO connection | G77: DSF: Storage (for export) | H77: 2022-04-01 | I77: 2022-04-30 | J77: 01.04.22 - 30.04.22 (1 months) | K77: As per FFR framework agreement | L77: 1900 | M77: 2300 | N77: 4 | O77: 1900 | P77: 2300 | Q77: 4 | R77: 1900 | S77: 2300 | T77: 4 | U77: 182.64 | V77: 0 | X77: YES | AC77: 3.2 | AD77: 8 | AE77: 8 | AF77: 3.2 | AG77: 8 | AH77: 3.2 | AI77: 8 | AP77: KY1 3
A78: 147.072 | B78: Accepted | C78: NA | D78: Flexitricity Limited | E78: AG-NFLX01 | F78: DNO connection | G78: DSF: Storage (for export) | H78: 2022-04-01 | I78: 2022-04-30 | J78: 01.04.22 - 30.04.22 (1 months) | K78: As per FFR framework agreement | O78: 700 | P78: 1500 | Q78: 8 | R78: 700 | S78: 1500 | T78: 8 | U78: 87.6 | V78: 0 | X78: YES | AC78: 3.2 | AD78: 8 | AE78: 8 | AF78: 3.2 | AG78: 8 | AH78: 3.2 | AI78: 8 | AL78: A | AP78: KY1 3
A79: 147.073 | B79: Accepted | C79: NA | D79: Flexitricity Limited | E79: AG-NFLX01 | F79: DNO connection | G79: DSF: Storage (for export) | H79: 2022-04-01 | I79: 2022-04-30 | J79: 01.04.22 - 30.04.22 (1 months) | K79: As per FFR framework agreement | O79: 1500 | P79: 1900 | Q79: 4 | R79: 1500 | S79: 1900 | T79: 4 | U79: 182.64 | V79: 0 | X79: YES | AC79: 3.2 | AD79: 8 | AE79: 8 | AF79: 3.2 | AG79: 8 | AH79: 3.2 | AI79: 8 | AL79: A | AP79: KY1 3
A80: 147.074 | B80: Rejected | C80: 2 | D80: Flexitricity Limited | E80: AG-MFLX02 | F80: DNO connection | G80: DSF: Storage (for export) | H80: 2022-03-31 | I80: 2022-04-30 | J80: 31.03.22 - 30.04.22 (1 months) | K80: As per FFR framework agreement | L80: 2300 | M80: 700 | N80: 8 | O80: 2300 | P80: 700 | Q80: 8 | R80: 2300 | S80: 700 | T80: 8 | U80: 697.27 | V80: 0 | X80: YES | AC80: 19.96 | AD80: 49 | AE80: 49 | AF80: 19.96 | AG80: 49 | AH80: 19.96 | AI80: 49 | AP80: S66 9
A81: 147.075 | B81: Rejected | C81: 2 | D81: Flexitricity Limited | E81: AG-MFLX02 | F81: DNO connection | G81: DSF: Storage (for export) | H81: 2022-04-01 | I81: 2022-04-30 | J81: 01.04.22 - 30.04.22 (1 months) | K81: As per FFR framework agreement | L81: 700 | M81: 1500 | N81: 8 | O81: 700 | P81: 1500 | Q81: 8 | R81: 700 | S81: 1500 | T81: 8 | U81: 657.58 | V81: 0 | X81: YES | AC81: 19.96 | AD81: 49 | AE81: 49 | AF81: 19.96 | AG81: 49 | AH81: 19.96 | AI81: 49 | AP81: S66 9
A82: 147.076 | B82: Accepted | C82: NA | D82: Flexitricity Limited | E82: AG-MFLX02 | F82: DNO connection | G82: DSF: Storage (for export) | H82: 2022-04-01 | I82: 2022-04-30 | J82: 01.04.22 - 30.04.22 (1 months) | K82: As per FFR framework agreement | L82: 1500 | M82: 2300 | N82: 8 | O82: 1500 | P82: 2300 | Q82: 8 | R82: 1500 | S82: 2300 | T82: 8 | U82: 1366.61 | V82: 0 | X82: YES | AC82: 19.96 | AD82: 49 | AE82: 49 | AF82: 19.96 | AG82: 49 | AH82: 19.96 | AI82: 49 | AP82: S66 9
A83: 147.077 | B83: Accepted | C83: NA | D83: GridBeyond Limited | E83: GBND-2 | F83: DNO connection | G83: DSF: Load response | H83: 2022-03-31 | I83: 2022-04-30 | J83: 31.03.22 - 30.04.22 (1 months) | K83: As per FFR framework agreement | L83: 2300 | M83: 700 | N83: 8 | U83: 225 | AC83: 12 | AD83: 30 | AE83: 30 | AF83: 12 | AG83: 30 | AH83: 6 | AI83: 15 | AL83: A
A84: 147.078 | B84: Accepted | C84: NA | D84: GridBeyond Limited | E84: GBND-2 | F84: DNO connection | G84: DSF: Load response | H84: 2022-04-01 | I84: 2022-04-30 | J84: 01.04.22 - 30.04.22 (1 months) | K84: As per FFR framework agreement | L84: 700 | M84: 1500 | N84: 8 | U84: 223.5 | AC84: 12 | AD84: 30 | AE84: 30 | AF84: 12 | AG84: 30 | AH84: 6 | AI84: 15 | AL84: B
A85: 147.079 | B85: Accepted | C85: NA | D85: GridBeyond Limited | E85: GBND-2 | F85: DNO connection | G85: DSF: Load response | H85: 2022-04-01 | I85: 2022-04-30 | J85: 01.04.22 - 30.04.22 (1 months) | K85: As per FFR framework agreement | L85: 1500 | M85: 2300 | N85: 8 | U85: 569.5 | AC85: 10.4 | AD85: 26 | AE85: 26 | AF85: 10.4 | AG85: 26 | AH85: 6 | AI85: 15 | AL85: C
A86: 147.08 | B86: Accepted | C86: NA | D86: GridBeyond Limited | E86: GBND-2 | F86: DNO connection | G86: DSF: Load response | H86: 2022-03-31 | I86: 2022-04-30 | J86: 31.03.22 - 30.04.22 (1 months) | K86: As per FFR framework agreement | O86: 2300 | P86: 700 | Q86: 8 | U86: 147 | AC86: 6.8 | AD86: 17 | AE86: 17 | AF86: 6.8 | AG86: 17 | AH86: 6 | AI86: 15 | AL86: A
A87: 147.081 | B87: Accepted | C87: NA | D87: GridBeyond Limited | E87: GBND-2 | F87: DNO connection | G87: DSF: Load response | H87: 2022-04-01 | I87: 2022-04-30 | J87: 01.04.22 - 30.04.22 (1 months) | K87: As per FFR framework agreement | O87: 700 | P87: 1500 | Q87: 8 | U87: 157.94 | AC87: 7.6 | AD87: 19 | AE87: 19 | AF87: 7.6 | AG87: 19 | AH87: 6 | AI87: 15 | AL87: B
A88: 147.082 | B88: Accepted | C88: NA | D88: GridBeyond Limited | E88: GBND-2 | F88: DNO connection | G88: DSF: Load response | H88: 2022-04-01 | I88: 2022-04-30 | J88: 01.04.22 - 30.04.22 (1 months) | K88: As per FFR framework agreement | O88: 1500 | P88: 2300 | Q88: 8 | U88: 399.5 | AC88: 6.4 | AD88: 16 | AE88: 16 | AF88: 6.4 | AG88: 16 | AH88: 6 | AI88: 15 | AL88: C
A89: 147.083 | B89: Accepted | C89: NA | D89: GridBeyond Limited | E89: GBND-2 | F89: DNO connection | G89: DSF: Load response | H89: 2022-03-31 | I89: 2022-04-30 | J89: 31.03.22 - 30.04.22 (1 months) | K89: As per FFR framework agreement | R89: 2300 | S89: 700 | T89: 8 | U89: 120 | AC89: 5.2 | AD89: 13 | AE89: 13 | AF89: 5.2 | AG89: 13 | AH89: 5.6 | AI89: 14 | AL89: A
A90: 147.084 | B90: Accepted | C90: NA | D90: GridBeyond Limited | E90: GBND-2 | F90: DNO connection | G90: DSF: Load response | H90: 2022-04-01 | I90: 2022-04-30 | J90: 01.04.22 - 30.04.22 (1 months) | K90: As per FFR framework agreement | R90: 700 | S90: 1500 | T90: 8 | U90: 119.2 | AC90: 5.2 | AD90: 13 | AE90: 13 | AF90: 5.2 | AG90: 13 | AH90: 5.6 | AI90: 14 | AL90: B
A91: 147.085 | B91: Accepted | C91: NA | D91: GridBeyond Limited | E91: GBND-2 | F91: DNO connection | G91: DSF: Load response | H91: 2022-04-01 | I91: 2022-04-30 | J91: 01.04.22 - 30.04.22 (1 months) | K91: As per FFR framework agreement | R91: 1500 | S91: 2300 | T91: 8 | U91: 391 | AC91: 6.4 | AD91: 16 | AE91: 16 | AF91: 6.4 | AG91: 16 | AH91: 5.6 | AI91: 14 | AL91: C
A92: 147.086 | B92: Accepted | C92: NA | D92: GridBeyond Limited | E92: ENDSR-1 | F92: DNO connection | G92: DSF: Load response | H92: 2022-03-31 | I92: 2022-04-30 | J92: 31.03.22 - 30.04.22 (1 months) | K92: As per FFR framework agreement | L92: 2300 | M92: 700 | N92: 8 | O92: 2300 | P92: 700 | Q92: 8 | R92: 2300 | S92: 700 | T92: 8 | U92: 15.92 | AO92: 4
A93: 147.087 | B93: Accepted | C93: NA | D93: GridBeyond Limited | E93: ENDSR-1 | F93: DNO connection | G93: DSF: Load response | H93: 2022-04-01 | I93: 2022-04-30 | J93: 01.04.22 - 30.04.22 (1 months) | K93: As per FFR framework agreement | L93: 700 | M93: 1500 | N93: 8 | O93: 700 | P93: 1500 | Q93: 8 | R93: 700 | S93: 1500 | T93: 8 | U93: 11.94 | AO93: 3
A94: 147.088 | B94: Rejected | C94: 2 | D94: GridBeyond Limited | E94: ENDSR-1 | F94: DNO connection | G94: DSF: Load response | H94: 2022-04-01 | I94: 2022-04-30 | J94: 01.04.22 - 30.04.22 (1 months) | K94: As per FFR framework agreement | L94: 1500 | M94: 2300 | N94: 8 | O94: 1500 | P94: 2300 | Q94: 8 | R94: 1500 | S94: 2300 | T94: 8 | U94: 13.5 | AO94: 3
A95: 147.089 | B95: Accepted | C95: NA | D95: GridBeyond Limited | E95: ENDSR-2 | F95: DNO connection | G95: DSF: Load response | H95: 2022-03-31 | I95: 2022-04-30 | J95: 31.03.22 - 30.04.22 (1 months) | K95: As per FFR framework agreement | L95: 2300 | M95: 700 | N95: 8 | O95: 2300 | P95: 700 | Q95: 8 | R95: 2300 | S95: 700 | T95: 8 | U95: 11.94 | AO95: 3
A96: 147.09 | B96: Accepted | C96: NA | D96: GridBeyond Limited | E96: ENDSR-2 | F96: DNO connection | G96: DSF: Load response | H96: 2022-04-01 | I96: 2022-04-30 | J96: 01.04.22 - 30.04.22 (1 months) | K96: As per FFR framework agreement | L96: 700 | M96: 1500 | N96: 8 | O96: 700 | P96: 1500 | Q96: 8 | R96: 700 | S96: 1500 | T96: 8 | U96: 11.94 | AO96: 3
A97: 147.091 | B97: Accepted | C97: NA | D97: GridBeyond Limited | E97: ENDSR-2 | F97: DNO connection | G97: DSF: Load response | H97: 2022-04-01 | I97: 2022-04-30 | J97: 01.04.22 - 30.04.22 (1 months) | K97: As per FFR framework agreement | L97: 1500 | M97: 2300 | N97: 8 | O97: 1500 | P97: 2300 | Q97: 8 | R97: 1500 | S97: 2300 | T97: 8 | U97: 11.94 | AO97: 3
A98: 147.092 | B98: Accepted | C98: NA | D98: GridBeyond Limited | E98: ENDSR-4 | F98: DNO connection | G98: DSF: Load response | H98: 2022-03-31 | I98: 2022-04-30 | J98: 31.03.22 - 30.04.22 (1 months) | K98: As per FFR framework agreement | L98: 2300 | M98: 700 | N98: 8 | O98: 2300 | P98: 700 | Q98: 8 | R98: 2300 | S98: 700 | T98: 8 | U98: 11.94 | AO98: 3
A99: 147.093 | B99: Accepted | C99: NA | D99: GridBeyond Limited | E99: ENDSR-4 | F99: DNO connection | G99: DSF: Load response | H99: 2022-04-01 | I99: 2022-04-30 | J99: 01.04.22 - 30.04.22 (1 months) | K99: As per FFR framework agreement | L99: 700 | M99: 1500 | N99: 8 | O99: 700 | P99: 1500 | Q99: 8 | R99: 700 | S99: 1500 | T99: 8 | U99: 15.92 | AO99: 4
A100: =A99+0.001 -> 147.094 | B100: Accepted | C100: NA | D100: GridBeyond Limited | E100: ENDSR-4 | F100: DNO connection | G100: DSF: Load response | H100: 2022-04-01 | I100: 2022-04-30 | J100: 01.04.22 - 30.04.22 (1 months) | K100: As per FFR framework agreement | L100: 1500 | M100: 2300 | N100: 8 | O100: 1500 | P100: 2300 | Q100: 8 | R100: 1500 | S100: 2300 | T100: 8 | U100: 11.94 | AO100: 3
A101: 147.095 | B101: Accepted | C101: NA | D101: GridBeyond Limited | E101: ENDSR-3 | F101: DNO connection | G101: DSF: Load response | H101: 2022-03-31 | I101: 2022-04-30 | J101: 31.03.22 - 30.04.22 (1 months) | K101: As per FFR framework agreement | L101: 2300 | M101: 700 | N101: 8 | O101: 2300 | P101: 700 | Q101: 8 | R101: 2300 | S101: 700 | T101: 8 | U101: 15.92 | AO101: 4
A102: 147.096 | B102: Accepted | C102: NA | D102: GridBeyond Limited | E102: ENDSR-3 | F102: DNO connection | G102: DSF: Load response | H102: 2022-04-01 | I102: 2022-04-30 | J102: 01.04.22 - 30.04.22 (1 months) | K102: As per FFR framework agreement | L102: 700 | M102: 1500 | N102: 8 | O102: 700 | P102: 1500 | Q102: 8 | R102: 700 | S102: 1500 | T102: 8 | U102: 15.92 | AO102: 4
A103: =A102+0.001 -> 147.097 | B103: Accepted | C103: NA | D103: GridBeyond Limited | E103: ENDSR-3 | F103: DNO connection | G103: DSF: Load response | H103: 2022-04-01 | I103: 2022-04-30 | J103: 01.04.22 - 30.04.22 (1 months) | K103: As per FFR framework agreement | L103: 1500 | M103: 2300 | N103: 8 | O103: 1500 | P103: 2300 | Q103: 8 | R103: 1500 | S103: 2300 | T103: 8 | U103: 15.92 | AO103: 4
A104: 147.098 | B104: Accepted | C104: NA | D104: GridBeyond Limited | E104: ENDSR-6 | F104: DNO connection | G104: DSF: Load response | H104: 2022-03-31 | I104: 2022-04-30 | J104: 31.03.22 - 30.04.22 (1 months) | K104: As per FFR framework agreement | L104: 2300 | M104: 700 | N104: 8 | O104: 2300 | P104: 700 | Q104: 8 | R104: 2300 | S104: 700 | T104: 8 | U104: 79.6 | AO104: 20
A105: 147.099 | B105: Accepted | C105: NA | D105: GridBeyond Limited | E105: ENDSR-6 | F105: DNO connection | G105: DSF: Load response | H105: 2022-04-01 | I105: 2022-04-30 | J105: 01.04.22 - 30.04.22 (1 months) | K105: As per FFR framework agreement | L105: 700 | M105: 1500 | N105: 8 | O105: 700 | P105: 1500 | Q105: 8 | R105: 700 | S105: 1500 | T105: 8 | U105: 79.6 | AO105: 20
A106: 147.1 | B106: Accepted | C106: NA | D106: GridBeyond Limited | E106: ENDSR-6 | F106: DNO connection | G106: DSF: Load response | H106: 2022-04-01 | I106: 2022-04-30 | J106: 01.04.22 - 30.04.22 (1 months) | K106: As per FFR framework agreement | L106: 1500 | M106: 2300 | N106: 8 | O106: 1500 | P106: 2300 | Q106: 8 | R106: 1500 | S106: 2300 | T106: 8 | U106: 79.6 | AO106: 20
A107: 147.101 | B107: Accepted | C107: NA | D107: GridBeyond Limited | E107: ENDSR-8 | F107: DNO connection | G107: DSF: Load response | H107: 2022-03-31 | I107: 2022-04-30 | J107: 31.03.22 - 30.04.22 (1 months) | K107: As per FFR framework agreement | L107: 2300 | M107: 700 | N107: 8 | O107: 2300 | P107: 700 | Q107: 8 | R107: 2300 | S107: 700 | T107: 8 | U107: 27.86 | AO107: 7
A108: 147.102 | B108: Accepted | C108: NA | D108: GridBeyond Limited | E108: ENDSR-8 | F108: DNO connection | G108: DSF: Load response | H108: 2022-04-01 | I108: 2022-04-30 | J108: 01.04.22 - 30.04.22 (1 months) | K108: As per FFR framework agreement | L108: 700 | M108: 1500 | N108: 8 | O108: 700 | P108: 1500 | Q108: 8 | R108: 700 | S108: 1500 | T108: 8 | U108: 27.86 | AO108: 7
A109: 147.103 | B109: Accepted | C109: NA | D109: GridBeyond Limited | E109: ENDSR-8 | F109: DNO connection | G109: DSF: Load response | H109: 2022-04-01 | I109: 2022-04-30 | J109: 01.04.22 - 30.04.22 (1 months) | K109: As per FFR framework agreement | L109: 1500 | M109: 2300 | N109: 8 | O109: 1500 | P109: 2300 | Q109: 8 | R109: 1500 | S109: 2300 | T109: 8 | U109: 27.86 | AO109: 7
A110: 147.104 | B110: Accepted | C110: NA | D110: GridBeyond Limited | E110: ENDSR-9 | F110: DNO connection | G110: DSF: Load response | H110: 2022-03-31 | I110: 2022-04-30 | J110: 31.03.22 - 30.04.22 (1 months) | K110: As per FFR framework agreement | L110: 2300 | M110: 700 | N110: 8 | O110: 2300 | P110: 700 | Q110: 8 | R110: 2300 | S110: 700 | T110: 8 | U110: 31.84 | AO110: 8
A111: 147.105 | B111: Accepted | C111: NA | D111: GridBeyond Limited | E111: ENDSR-9 | F111: DNO connection | G111: DSF: Load response | H111: 2022-04-01 | I111: 2022-04-30 | J111: 01.04.22 - 30.04.22 (1 months) | K111: As per FFR framework agreement | L111: 700 | M111: 1500 | N111: 8 | O111: 700 | P111: 1500 | Q111: 8 | R111: 700 | S111: 1500 | T111: 8 | U111: 31.84 | AO111: 8
A112: 147.106 | B112: Accepted | C112: NA | D112: GridBeyond Limited | E112: ENDSR-9 | F112: DNO connection | G112: DSF: Load response | H112: 2022-04-01 | I112: 2022-04-30 | J112: 01.04.22 - 30.04.22 (1 months) | K112: As per FFR framework agreement | L112: 1500 | M112: 2300 | N112: 8 | O112: 1500 | P112: 2300 | Q112: 8 | R112: 1500 | S112: 2300 | T112: 8 | U112: 31.84 | AO112: 8
A113: 147.107 | B113: Accepted | C113: NA | D113: GridBeyond Limited | E113: ENDSR-5 | F113: DNO connection | G113: DSF: Load response | H113: 2022-03-31 | I113: 2022-04-30 | J113: 31.03.22 - 30.04.22 (1 months) | K113: As per FFR framework agreement | L113: 2300 | M113: 700 | N113: 8 | U113: 71.64 | AL113: D | AO113: 18
A114: 147.108 | B114: Accepted | C114: NA | D114: GridBeyond Limited | E114: ENDSR-5 | F114: DNO connection | G114: DSF: Load response | H114: 2022-04-01 | I114: 2022-04-30 | J114: 01.04.22 - 30.04.22 (1 months) | K114: As per FFR framework agreement | L114: 700 | M114: 1500 | N114: 8 | U114: 63.68 | AL114: E | AO114: 16
A115: 147.109 | B115: Accepted | C115: NA | D115: GridBeyond Limited | E115: ENDSR-5 | F115: DNO connection | G115: DSF: Load response | H115: 2022-04-01 | I115: 2022-04-30 | J115: 01.04.22 - 30.04.22 (1 months) | K115: As per FFR framework agreement | L115: 1500 | M115: 2300 | N115: 8 | U115: 63.68 | AL115: F | AO115: 16
A116: 147.11 | B116: Accepted | C116: NA | D116: GridBeyond Limited | E116: ENDSR-5 | F116: DNO connection | G116: DSF: Load response | H116: 2022-03-31 | I116: 2022-04-30 | J116: 31.03.22 - 30.04.22 (1 months) | K116: As per FFR framework agreement | O116: 2300 | P116: 700 | Q116: 8 | R116: 2300 | S116: 700 | T116: 8 | U116: 59.7 | AL116: D | AO116: 15
A117: 147.111 | B117: Accepted | C117: NA | D117: GridBeyond Limited | E117: ENDSR-5 | F117: DNO connection | G117: DSF: Load response | H117: 2022-04-01 | I117: 2022-04-30 | J117: =IFERROR(TEXT(H117,"DD.MM.YY")&" - "&TEXT(I117,"DD.MM.YY")&" ("&DATEDIF(H117,I117+1,"m")&" months)","Tender End Date is Before Start Date") -> 01.04.22 - 30.04.22 (1 months) | K117: As per FFR framework agreement | O117: 700 | P117: 1500 | Q117: 8 | R117: 700 | S117: 1500 | T117: 8 | U117: 59.7 | AL117: E | AO117: 15
A118: 147.112 | B118: Accepted | C118: NA | D118: GridBeyond Limited | E118: ENDSR-5 | F118: DNO connection | G118: DSF: Load response | H118: 2022-04-01 | I118: 2022-04-30 | J118: =IFERROR(TEXT(H118,"DD.MM.YY")&" - "&TEXT(I118,"DD.MM.YY")&" ("&DATEDIF(H118,I118+1,"m")&" months)","Tender End Date is Before Start Date") -> 01.04.22 - 30.04.22 (1 months) | K118: As per FFR framework agreement | O118: 1500 | P118: 2300 | Q118: 8 | R118: 1500 | S118: 2300 | T118: 8 | U118: 59.7 | AL118: F | AO118: 15
A119: 147.113 | B119: Accepted | C119: NA | D119: GridBeyond Limited | E119: ENDSR-7 | F119: DNO connection | G119: DSF: Load response | H119: 2022-03-31 | I119: 2022-04-30 | J119: 31.03.22 - 30.04.22 (1 months) | K119: As per FFR framework agreement | L119: 2300 | M119: 700 | N119: 8 | O119: 2300 | P119: 700 | Q119: 8 | R119: 2300 | S119: 700 | T119: 8 | U119: 51.74 | AO119: 13
A120: 147.114 | B120: Accepted | C120: NA | D120: GridBeyond Limited | E120: ENDSR-7 | F120: DNO connection | G120: DSF: Load response | H120: 2022-04-01 | I120: 2022-04-30 | J120: 01.04.22 - 30.04.22 (1 months) | K120: As per FFR framework agreement | L120: 700 | M120: 1500 | N120: 8 | O120: 700 | P120: 1500 | Q120: 8 | R120: 700 | S120: 1500 | T120: 8 | U120: 51.74 | AO120: 13
A121: 147.115 | B121: Accepted | C121: NA | D121: GridBeyond Limited | E121: ENDSR-7 | F121: DNO connection | G121: DSF: Load response | H121: 2022-04-01 | I121: 2022-04-30 | J121: 01.04.22 - 30.04.22 (1 months) | K121: As per FFR framework agreement | L121: 1500 | M121: 2300 | N121: 8 | O121: 1500 | P121: 2300 | Q121: 8 | R121: 1500 | S121: 2300 | T121: 8 | U121: 51.74 | AO121: 13
A122: 147.116 | B122: Rejected | C122: 2 | D122: Habitat Energy Limited | E122: COWB-1 | F122: TO connection | G122: Battery | H122: 2022-03-31 | I122: 2022-04-30 | J122: 31.03.22 - 30.04.22 (1 months) | K122: As per FFR framework agreement | L122: 2300 | M122: 700 | N122: 8 | O122: 2300 | P122: 700 | Q122: 8 | R122: 2300 | S122: 700 | T122: 8 | U122: 575 | V122: - | W122: - | X122: YES | AC122: 18.4 | AD122: 46 | AE122: 46 | AF122: 18.4 | AG122: 46 | AH122: 18.4 | AI122: 46 | AP122: OX4 7
A123: =A122+0.002 -> 147.118 | B123: Accepted | C123: NA | D123: Habitat Energy Limited | E123: COWB-1 | F123: TO connection | G123: Battery | H123: 2022-04-01 | I123: 2022-04-30 | J123: 01.04.22 - 30.04.22 (1 months) | K123: As per FFR framework agreement | L123: 1500 | M123: 1900 | N123: 4 | O123: 1500 | P123: 1900 | Q123: 4 | R123: 1500 | S123: 1900 | T123: 4 | U123: 1080 | V123: - | W123: - | X123: YES | AC123: 16 | AD123: 40 | AE123: 40 | AF123: 16 | AG123: 40 | AH123: 16 | AI123: 40 | AP123: OX4 7
A124: =A123+0.002 -> 147.12 | B124: Accepted | C124: NA | D124: Habitat Energy Limited | E124: AG-HEL00G | F124: DNO connection | G124: DSF: Storage (for export) | H124: 2022-04-01 | I124: 2022-04-30 | J124: 01.04.22 - 30.04.22 (1 months) | K124: As per FFR framework agreement | L124: 1500 | M124: 1900 | N124: 4 | O124: 1500 | P124: 1900 | Q124: 4 | R124: 1500 | S124: 1900 | T124: 4 | U124: 1151.04 | V124: - | W124: - | X124: YES | AC124: 17.6 | AD124: 44 | AE124: 44 | AF124: 17.6 | AG124: 44 | AH124: 17.6 | AI124: 44 | AP124: PR2 5
A125: =A124+0.002 -> 147.122 | B125: Accepted | C125: NA | D125: Habitat Energy Limited | E125: AG-HEL01H | F125: DNO connection | G125: DSF: Storage (for export) | H125: 2022-04-01 | I125: 2022-04-30 | J125: 01.04.22 - 30.04.22 (1 months) | K125: As per FFR framework agreement | L125: 1500 | M125: 1900 | N125: =IF(L125>M125, (2400-L125+M125)/100, IF(AND(L125="",M125="",L125=M125), "", IF(L125=M125,24,(M125-L125)/100))) -> 4 | O125: 1500 | P125: 1900 | Q125: =IF(O125>P125, (2400-O125+P125)/100, IF(AND(O125="",P125="",O125=P125), "", IF(O125=P125,24,(P125-O125)/100))) -> 4 | R125: 1500 | S125: 1900 | T125: =IF(R125>S125, (2400-R125+S125)/100, IF(AND(R125="",S125="",R125=S125), "", IF(R125=S125,24,(S125-R125)/100))) -> 4 | U125: 482.76 | V125: - | W125: - | X125: YES | AC125: 7.2 | AD125: 18 | AE125: 18 | AF125: 7.2 | AG125: 18 | AH125: 6.4 | AI125: 16 | AP125: SN12
A126: =A125+0.005 -> 147.127 | B126: Accepted | C126: NA | D126: Kiwi Power Ltd | E126: KIWIS-1 | F126: DNO connection | G126: DSF: Load response | H126: 2022-03-31 | I126: 2022-04-30 | J126: =IFERROR(TEXT(H126,"DD.MM.YY")&" - "&TEXT(I126,"DD.MM.YY")&" ("&DATEDIF(H126,I126+1,"m")&" months)","Tender End Date is Before Start Date") -> 31.03.22 - 30.04.22 (1 months) | K126: As per FFR framework agreement | L126: 2300 | M126: 700 | N126: 8 | O126: 2300 | P126: 700 | Q126: 8 | R126: 2300 | S126: 700 | T126: 8 | U126: 55.5 | AO126: 15 | AP126: S33 6,ST10
A127: 147.128 | B127: Accepted | C127: NA | D127: Kiwi Power Ltd | E127: KIWIS-1 | F127: DNO connection | G127: DSF: Load response | H127: 2022-04-01 | I127: 2022-04-30 | J127: 01.04.22 - 30.04.22 (1 months) | K127: As per FFR framework agreement | L127: 700 | M127: 1500 | N127: 8 | O127: 700 | P127: 1500 | Q127: 8 | R127: 700 | S127: 1500 | T127: 8 | U127: 56.25 | AO127: 15 | AP127: S33 6,ST10
A128: 147.129 | B128: Accepted | C128: NA | D128: Kiwi Power Ltd | E128: KIWIS-1 | F128: DNO connection | G128: DSF: Load response | H128: 2022-04-01 | I128: 2022-04-30 | J128: 01.04.22 - 30.04.22 (1 months) | K128: As per FFR framework agreement | L128: 1500 | M128: 2300 | N128: 8 | O128: 1500 | P128: 2300 | Q128: 8 | R128: 1500 | S128: 2300 | T128: 8 | U128: 57 | AO128: 15 | AP128: S33 6,ST10
A129: =A128+0.001 -> 147.13 | B129: Accepted | C129: NA | D129: Kiwi Power Ltd | E129: KIWIS-2 | F129: DNO connection | G129: DSF: Load response | H129: 2022-03-31 | I129: 2022-04-30 | J129: 31.03.22 - 30.04.22 (1 months) | K129: As per FFR framework agreement | L129: 2300 | M129: 700 | N129: 8 | O129: 2300 | P129: 700 | Q129: 8 | R129: 2300 | S129: 700 | T129: 8 | U129: 37 | AO129: 10 | AP129: N/A
A130: 147.131 | B130: Accepted | C130: NA | D130: Kiwi Power Ltd | E130: KIWIS-2 | F130: DNO connection | G130: DSF: Load response | H130: 2022-04-01 | I130: 2022-04-30 | J130: 01.04.22 - 30.04.22 (1 months) | K130: As per FFR framework agreement | L130: 700 | M130: 1500 | N130: 8 | O130: 700 | P130: 1500 | Q130: 8 | R130: 700 | S130: 1500 | T130: 8 | U130: 37.5 | AO130: 10 | AP130: N/A
A131: 147.132 | B131: Accepted | C131: NA | D131: Kiwi Power Ltd | E131: KIWIS-2 | F131: DNO connection | G131: DSF: Load response | H131: 2022-04-01 | I131: 2022-04-30 | J131: 01.04.22 - 30.04.22 (1 months) | K131: As per FFR framework agreement | L131: 1500 | M131: 2300 | N131: 8 | O131: 1500 | P131: 2300 | Q131: 8 | R131: 1500 | S131: 2300 | T131: 8 | U131: 38 | AO131: 10 | AP131: N/A
A132: 147.133 | B132: Accepted | C132: NA | D132: Kiwi Power Ltd | E132: KIWIS-3 | F132: DNO connection | G132: DSF: Load response | H132: 2022-03-31 | I132: 2022-04-30 | J132: 31.03.22 - 30.04.22 (1 months) | K132: As per FFR framework agreement | L132: 2300 | M132: 700 | N132: 8 | O132: 2300 | P132: 700 | Q132: 8 | R132: 2300 | S132: 700 | T132: 8 | U132: 11.1 | AO132: 3 | AP132: N/A
A133: 147.134 | B133: Accepted | C133: NA | D133: Kiwi Power Ltd | E133: KIWIS-3 | F133: DNO connection | G133: DSF: Load response | H133: 2022-04-01 | I133: 2022-04-30 | J133: 01.04.22 - 30.04.22 (1 months) | K133: As per FFR framework agreement | L133: 700 | M133: 1500 | N133: 8 | O133: 700 | P133: 1500 | Q133: 8 | R133: 700 | S133: 1500 | T133: 8 | U133: 11.25 | AO133: 3 | AP133: N/A
A134: 147.135 | B134: Accepted | C134: NA | D134: Kiwi Power Ltd | E134: KIWIS-3 | F134: DNO connection | G134: DSF: Load response | H134: 2022-04-01 | I134: 2022-04-30 | J134: 01.04.22 - 30.04.22 (1 months) | K134: As per FFR framework agreement | L134: 1500 | M134: 2300 | N134: 8 | O134: 1500 | P134: 2300 | Q134: 8 | R134: 1500 | S134: 2300 | T134: 8 | U134: 11.4 | AO134: 3 | AP134: N/A
A135: 147.136 | B135: Accepted | C135: NA | D135: Kiwi Power Ltd | E135: KIWIS-4 | F135: DNO connection | G135: DSF: Load response | H135: 2022-03-31 | I135: 2022-04-30 | J135: 31.03.22 - 30.04.22 (1 months) | K135: As per FFR framework agreement | L135: 2300 | M135: 700 | N135: 8 | O135: 2300 | P135: 700 | Q135: 8 | R135: 2300 | S135: 700 | T135: 8 | U135: 29.6 | AO135: 8 | AP135: N/A
A136: 147.137 | B136: Accepted | C136: NA | D136: Kiwi Power Ltd | E136: KIWIS-4 | F136: DNO connection | G136: DSF: Load response | H136: 2022-04-01 | I136: 2022-04-30 | J136: 01.04.22 - 30.04.22 (1 months) | K136: As per FFR framework agreement | L136: 700 | M136: 1500 | N136: 8 | O136: 700 | P136: 1500 | Q136: 8 | R136: 700 | S136: 1500 | T136: 8 | U136: 30 | AO136: 8 | AP136: N/A
A137: 147.138 | B137: Accepted | C137: NA | D137: Kiwi Power Ltd | E137: KIWIS-4 | F137: DNO connection | G137: DSF: Load response | H137: 2022-04-01 | I137: 2022-04-30 | J137: 01.04.22 - 30.04.22 (1 months) | K137: As per FFR framework agreement | L137: 1500 | M137: 2300 | N137: 8 | O137: 1500 | P137: 2300 | Q137: 8 | R137: 1500 | S137: 2300 | T137: 8 | U137: 30.4 | AO137: 8 | AP137: N/A
A138: 147.139 | B138: Accepted | C138: NA | D138: Kiwi Power Ltd | E138: KIWIE-5 | F138: DNO connection | G138: DSF: Storage (onsite) | H138: 2022-03-31 | I138: 2022-04-30 | J138: 31.03.22 - 30.04.22 (1 months) | K138: As per FFR framework agreement | L138: 2300 | M138: 2300 | N138: 24 | O138: 2300 | P138: 2300 | Q138: 24 | R138: 2300 | S138: 2300 | T138: 24 | U138: 69.5 | AC138: 2 | AD138: 5 | AE138: 5 | AF138: 2 | AG138: 5 | AH138: 2 | AI138: 5 | AP138: TS13
A139: 147.14 | B139: Rejected | C139: 2 | D139: Kiwi Power Ltd | E139: KIWIE-2 | F139: DNO connection | G139: DSF: Storage (onsite) | H139: 2022-03-31 | I139: 2022-04-30 | J139: 31.03.22 - 30.04.22 (1 months) | K139: As per FFR framework agreement | L139: 2300 | M139: 700 | N139: 8 | O139: 2300 | P139: 700 | Q139: 8 | R139: 2300 | S139: 700 | T139: 8 | U139: 56.72 | AC139: 1.6 | AD139: 4 | AE139: 4 | AF139: 1.6 | AG139: 4 | AH139: 1.6 | AI139: 4 | AP139: CF33
A140: 147.141 | B140: Rejected | C140: 2 | D140: Kiwi Power Ltd | E140: KIWIE-2 | F140: DNO connection | G140: DSF: Storage (onsite) | H140: 2022-04-01 | I140: 2022-04-30 | J140: 01.04.22 - 30.04.22 (1 months) | K140: As per FFR framework agreement | L140: 700 | M140: 1500 | N140: 8 | O140: 700 | P140: 1500 | Q140: 8 | R140: 700 | S140: 1500 | T140: 8 | U140: 54.52 | AC140: 1.6 | AD140: 4 | AE140: 4 | AF140: 1.6 | AG140: 4 | AH140: 1.6 | AI140: 4 | AP140: CF33
A141: 147.142 | B141: Accepted | C141: NA | D141: Kiwi Power Ltd | E141: KIWIE-2 | F141: DNO connection | G141: DSF: Storage (onsite) | H141: 2022-04-01 | I141: 2022-04-30 | J141: 01.04.22 - 30.04.22 (1 months) | K141: As per FFR framework agreement | L141: 1500 | M141: 2300 | N141: 8 | O141: 1500 | P141: 2300 | Q141: 8 | R141: 1500 | S141: 2300 | T141: 8 | U141: 98.08 | AC141: 1.6 | AD141: 4 | AE141: 4 | AF141: 1.6 | AG141: 4 | AH141: 1.6 | AI141: 4 | AP141: CF33
A142: 147.143 | B142: Accepted | C142: NA | D142: Kiwi Power Ltd | E142: KIWIDA-1 | F142: DNO connection | G142: DSF: Storage (onsite) | H142: 2022-03-31 | I142: 2022-04-30 | J142: 31.03.22 - 30.04.22 (1 months) | K142: As per FFR framework agreement | L142: 2300 | M142: 2300 | N142: 24 | O142: 2300 | P142: 2300 | Q142: 24 | R142: 2300 | S142: 2300 | T142: 24 | U142: 35 | AC142: 0.8 | AD142: 2 | AE142: 2 | AF142: 0.8 | AG142: 2 | AH142: 0.8 | AI142: 2 | AP142: PL6 7
A143: =A142+0.001 -> 147.144 | B143: Accepted | C143: NA | D143: Limejump Ltd | E143: LJDYN-2 | F143: DNO connection | G143: DSF: Storage (for export) | H143: 2022-03-31 | I143: 2022-04-30 | J143: 31.03.22 - 30.04.22 (1 months) | K143: As per FFR framework agreement | L143: 2300 | M143: 2300 | N143: 24 | O143: 2300 | P143: 2300 | Q143: 24 | R143: 2300 | S143: 2300 | T143: 24 | U143: 103.5 | AC143: 3.6 | AD143: 9 | AE143: 9 | AF143: 3.6 | AG143: 9 | AH143: 3.6 | AI143: 9 | AL143: A | AM143: Mutually Exclusive to B and C | AP143: YO12 | AQ143: H for 30 minutes only
A144: 147.145 | B144: Rejected | C144: 4 | D144: Limejump Ltd | E144: LJDYN-2 | F144: DNO connection | G144: DSF: Storage (for export) | H144: 2022-03-31 | I144: 2022-04-30 | J144: 31.03.22 - 30.04.22 (1 months) | K144: As per FFR framework agreement | L144: 2300 | M144: 1500 | N144: 16 | O144: 2300 | P144: 1500 | Q144: 16 | R144: 2300 | S144: 1500 | T144: 16 | U144: 81.45 | AC144: 3.6 | AD144: 9 | AE144: 9 | AF144: 3.6 | AG144: 9 | AH144: 3.6 | AI144: 9 | AL144: B | AM144: Mutually Exclusive to A | AP144: YO12 | AQ144: H for 30 minutes only
A145: 147.146 | B145: Rejected | C145: 4 | D145: Limejump Ltd | E145: LJDYN-2 | F145: DNO connection | G145: DSF: Storage (for export) | H145: 2022-04-01 | I145: 2022-04-30 | J145: 01.04.22 - 30.04.22 (1 months) | K145: As per FFR framework agreement | L145: 1500 | M145: 2300 | N145: 8 | O145: 1500 | P145: 2300 | Q145: 8 | R145: 1500 | S145: 2300 | T145: 8 | U145: 262.8 | AC145: 3.6 | AD145: 9 | AE145: 9 | AF145: 3.6 | AG145: 9 | AH145: 3.6 | AI145: 9 | AL145: C | AM145: Mutually Exclusive to A | AP145: YO12 | AQ145: H for 30 minutes only
A146: 147.147 | B146: Accepted | C146: NA | D146: Open Energi Limited | E146: OPEN-1 | F146: DNO connection | G146: DSF: Load response | H146: 2022-03-31 | I146: 2022-04-30 | J146: 31.03.22 - 30.04.22 (1 months) | K146: As per FFR framework agreement | L146: 2300 | M146: 700 | N146: =IF(L146>M146, (2400-L146+M146)/100, IF(AND(L146="",M146="",L146=M146), "", IF(L146=M146,24,(M146-L146)/100))) -> 8 | O146: 2300 | P146: 700 | Q146: =IF(O146>P146, (2400-O146+P146)/100, IF(AND(O146="",P146="",O146=P146), "", IF(O146=P146,24,(P146-O146)/100))) -> 8 | R146: 2300 | S146: 700 | T146: =IF(R146>S146, (2400-R146+S146)/100, IF(AND(R146="",S146="",R146=S146), "", IF(R146=S146,24,(S146-R146)/100))) -> 8 | U146: 15.9 | AC146: 0.8 | AD146: 2 | AE146: 2 | AF146: 0.8 | AG146: 2 | AH146: 0.8 | AI146: 2 | AL146: A | AP146: Aggregated
A147: 147.148 | B147: Accepted | C147: NA | D147: Open Energi Limited | E147: OPEN-1 | F147: DNO connection | G147: DSF: Load response | H147: 2022-04-01 | I147: 2022-04-30 | J147: 01.04.22 - 30.04.22 (1 months) | K147: As per FFR framework agreement | L147: 700 | M147: 1500 | N147: =IF(L147>M147, (2400-L147+M147)/100, IF(AND(L147="",M147="",L147=M147), "", IF(L147=M147,24,(M147-L147)/100))) -> 8 | O147: 700 | P147: 1500 | Q147: =IF(O147>P147, (2400-O147+P147)/100, IF(AND(O147="",P147="",O147=P147), "", IF(O147=P147,24,(P147-O147)/100))) -> 8 | R147: 700 | S147: 1500 | T147: =IF(R147>S147, (2400-R147+S147)/100, IF(AND(R147="",S147="",R147=S147), "", IF(R147=S147,24,(S147-R147)/100))) -> 8 | U147: 15.9 | AC147: 0.8 | AD147: 2 | AE147: 2 | AF147: 0.8 | AG147: 2 | AH147: 0.8 | AI147: 2 | AL147: B | AP147: Aggregated
A148: 147.149 | B148: Accepted | C148: NA | D148: Open Energi Limited | E148: OPEN-1 | F148: DNO connection | G148: DSF: Load response | H148: 2022-04-01 | I148: 2022-04-30 | J148: 01.04.22 - 30.04.22 (1 months) | K148: As per FFR framework agreement | L148: 1500 | M148: 2300 | N148: 8 | O148: 1500 | P148: 2300 | Q148: 8 | R148: 1500 | S148: 2300 | T148: 8 | U148: 22.9 | AC148: 0.8 | AD148: 2 | AE148: 2 | AF148: 0.8 | AG148: 2 | AH148: 0.8 | AI148: 2 | AL148: C | AP148: Aggregated
A149: 147.15 | B149: Rejected | C149: 2 | D149: Erova Energy | E149: V__BEROV001 | F149: DNO connection | G149: Battery | H149: 2022-03-31 | I149: 2022-04-30 | J149: 31.03.22 - 30.04.22 (1 months) | K149: As per FFR framework agreement | L149: 2300 | M149: 2300 | N149: 24 | O149: 2300 | P149: 2300 | Q149: 24 | R149: 2300 | S149: 2300 | T149: 24 | U149: 179.1 | AC149: 3.6 | AD149: 9 | AE149: 9 | AF149: 3.6 | AG149: 9 | AH149: 2.8 | AI149: 7 | AL149: D | AP149: LE65
A150: 147.151 | B150: Rejected | C150: 2 | D150: OSSPV001 Limited | E150: OEL1-FFR | F150: DNO connection | G150: Battery | H150: 2022-03-31 | I150: 2022-04-30 | J150: 31.03.22 - 30.04.22 (1 months) | K150: As per FFR framework agreement | L150: 2300 | M150: 700 | N150: 8 | O150: 2300 | P150: 700 | Q150: 8 | R150: 2300 | S150: 700 | T150: 8 | U150: 126 | AC150: 3.6 | AD150: 9 | AE150: 9 | AF150: 3.6 | AG150: 9 | AH150: 3.6 | AI150: 9
A151: =A150+0.001 -> 147.152 | B151: Rejected | C151: 2 | D151: OSSPV001 Limited | E151: OEL1-FFR | F151: DNO connection | G151: Battery | H151: 2022-04-01 | I151: 2022-04-30 | J151: 01.04.22 - 30.04.22 (1 months) | K151: As per FFR framework agreement | L151: 700 | M151: 1500 | N151: 8 | O151: 700 | P151: 1500 | Q151: 8 | R151: 700 | S151: 1500 | T151: 8 | U151: 126 | AC151: 3.6 | AD151: 9 | AE151: 9 | AF151: 3.6 | AG151: 9 | AH151: 3.6 | AI151: 9
A152: 147.153 | B152: Accepted | C152: NA | D152: OSSPV001 Limited | E152: OEL1-FFR | F152: DNO connection | G152: Battery | H152: 2022-04-01 | I152: 2022-04-30 | J152: 01.04.22 - 30.04.22 (1 months) | K152: As per FFR framework agreement | L152: 1500 | M152: 2300 | N152: 8 | O152: 1500 | P152: 2300 | Q152: 8 | R152: 1500 | S152: 2300 | T152: 8 | U152: 225 | AC152: 3.6 | AD152: 9 | AE152: 9 | AF152: 3.6 | AG152: 9 | AH152: 3.6 | AI152: 9
A153: 147.154 | B153: Accepted | C153: NA | D153: Peak Gen | E153: PGFFR-4 | F153: DNO connection | G153: DSF: Distributed generation (for export) | H153: 2022-03-31 | I153: 2022-04-30 | J153: 31.03.22 - 30.04.22 (1 months) | K153: As per FFR framework agreement | L153: 2300 | M153: 1500 | N153: 16 | O153: 2300 | P153: 1500 | Q153: 16 | R153: 2300 | S153: 1500 | T153: 16 | U153: 63.913 | AO153: 16 | AP153: SA10
A154: 147.155 | B154: Accepted | C154: NA | D154: Peak Gen | E154: PGFFR-5 | F154: DNO connection | G154: DSF: Distributed generation (for export) | H154: 2022-03-31 | I154: 2022-04-30 | J154: 31.03.22 - 30.04.22 (1 months) | K154: As per FFR framework agreement | L154: 2300 | M154: 1500 | N154: 16 | O154: 2300 | P154: 1500 | Q154: 16 | R154: 2300 | S154: 1500 | T154: 16 | U154: 71.825 | AO154: 18 | AP154: CF64
A155: 147.156 | B155: Accepted | C155: NA | D155: Peak Gen | E155: PGFFR-6 | F155: DNO connection | G155: DSF: Distributed generation (for export) | H155: 2022-03-31 | I155: 2022-04-30 | J155: 31.03.22 - 30.04.22 (1 months) | K155: As per FFR framework agreement | L155: 2300 | M155: 1500 | N155: 16 | O155: 2300 | P155: 1500 | Q155: 16 | R155: 2300 | S155: 1500 | T155: 16 | U155: 71.7982 | AO155: 18 | AP155: PO15 5UB
A156: 147.157 | B156: Accepted | C156: NA | D156: Peak Gen | E156: PGFFR-7 | F156: DNO connection | G156: DSF: Distributed generation (for export) | H156: 2022-03-31 | I156: 2022-04-30 | J156: 31.03.22 - 30.04.22 (1 months) | K156: As per FFR framework agreement | L156: 2300 | M156: 1500 | N156: 16 | O156: 2300 | P156: 1500 | Q156: 16 | R156: 2300 | S156: 1500 | T156: 16 | U156: 71.8291 | AO156: 18 | AP156: EX2 8
A157: 147.158 | B157: Accepted | C157: NA | D157: Peak Gen | E157: PGFFR-8 | F157: DNO connection | G157: DSF: Distributed generation (for export) | H157: 2022-03-31 | I157: 2022-04-30 | J157: 31.03.22 - 30.04.22 (1 months) | K157: As per FFR framework agreement | L157: 2300 | M157: 1500 | N157: 16 | O157: 2300 | P157: 1500 | Q157: 16 | R157: 2300 | S157: 1500 | T157: 16 | U157: 71.973 | AO157: 18 | AP157: RG42 5NG
A158: 147.159 | B158: Accepted | C158: NA | D158: Peak Gen | E158: PGFFR-9 | F158: DNO connection | G158: DSF: Distributed generation (for export) | H158: 2022-03-31 | I158: 2022-04-30 | J158: 31.03.22 - 30.04.22 (1 months) | K158: As per FFR framework agreement | L158: 2300 | M158: 1500 | N158: 16 | O158: 2300 | P158: 1500 | Q158: 16 | R158: 2300 | S158: 1500 | T158: 16 | U158: 63.874 | AO158: 16 | AP158: PO9 1
A159: 147.16 | B159: Accepted | C159: NA | D159: Social Energy Limited | E159: SOC1-FFR | F159: DNO connection | G159: DSF: Storage (onsite) | H159: 2022-03-31 | I159: 2022-04-30 | J159: 31.03.22 - 30.04.22 (1 months) | K159: As per FFR framework agreement | L159: 2300 | M159: 1100 | N159: 12 | O159: 2300 | P159: 1100 | Q159: 12 | R159: 2300 | S159: 1100 | T159: 12 | U159: 11.01 | AC159: 0.4 | AD159: 1 | AE159: 1 | AF159: 0.4 | AG159: 1 | AH159: 0.4 | AI159: 1 | AL159: A | AQ159: H for only 30min
A160: 147.161 | B160: Accepted | C160: NA | D160: Social Energy Limited | E160: SOC1-FFR | F160: DNO connection | G160: DSF: Storage (onsite) | H160: 2022-04-01 | I160: 2022-04-30 | J160: 01.04.22 - 30.04.22 (1 months) | K160: As per FFR framework agreement | L160: 1900 | M160: 2300 | N160: 4 | O160: 1900 | P160: 2300 | Q160: 4 | R160: 1900 | S160: 2300 | T160: 4 | U160: 11.01 | AC160: 0.4 | AD160: 1 | AE160: 1 | AF160: 0.4 | AG160: 1 | AH160: 0.4 | AI160: 1 | AL160: A | AQ160: H for only 30min
A161: 147.162 | B161: Rejected | C161: 2 | D161: Social Energy Limited | E161: SOC1-FFR | F161: DNO connection | G161: DSF: Storage (onsite) | H161: 2022-04-01 | I161: 2022-04-30 | J161: 01.04.22 - 30.04.22 (1 months) | K161: As per FFR framework agreement | L161: 1100 | M161: 1900 | N161: 8 | O161: 1100 | P161: 1900 | Q161: 8 | R161: 1100 | S161: 1900 | T161: 8 | U161: 46.4 | AC161: 0.4 | AD161: 1 | AE161: 1 | AF161: 0.4 | AG161: 1 | AH161: 0.4 | AI161: 1 | AQ161: H for only 30min
A162: 147.163 | B162: Accepted | C162: NA | D162: Social Energy Limited | E162: SOC2-FFR | F162: DNO connection | G162: DSF: Storage (onsite) | H162: 2022-03-31 | I162: 2022-04-30 | J162: 31.03.22 - 30.04.22 (1 months) | K162: As per FFR framework agreement | L162: 2300 | M162: 1100 | N162: 12 | O162: 2300 | P162: 1100 | Q162: 12 | R162: 2300 | S162: 1100 | T162: 12 | U162: 11.21 | AC162: 0.4 | AD162: 1 | AE162: 1 | AF162: 0.4 | AG162: 1 | AH162: 0.4 | AI162: 1 | AL162: B | AQ162: H for only 30min
A163: 147.164 | B163: Accepted | C163: NA | D163: Social Energy Limited | E163: SOC2-FFR | F163: DNO connection | G163: DSF: Storage (onsite) | H163: 2022-04-01 | I163: 2022-04-30 | J163: 01.04.22 - 30.04.22 (1 months) | K163: As per FFR framework agreement | L163: 1900 | M163: 2300 | N163: 4 | O163: 1900 | P163: 2300 | Q163: 4 | R163: 1900 | S163: 2300 | T163: 4 | U163: 11.21 | AC163: 0.4 | AD163: 1 | AE163: 1 | AF163: 0.4 | AG163: 1 | AH163: 0.4 | AI163: 1 | AL163: B | AQ163: H for only 30min
A164: 147.165 | B164: Rejected | C164: 2 | D164: Social Energy Limited | E164: SOC2-FFR | F164: DNO connection | G164: DSF: Storage (onsite) | H164: 2022-04-01 | I164: 2022-04-30 | J164: 01.04.22 - 30.04.22 (1 months) | K164: As per FFR framework agreement | L164: 1100 | M164: 1900 | N164: 8 | O164: 1100 | P164: 1900 | Q164: 8 | R164: 1100 | S164: 1900 | T164: 8 | U164: 46.4 | AC164: 0.4 | AD164: 1 | AE164: 1 | AF164: 0.4 | AG164: 1 | AH164: 0.4 | AI164: 1 | AQ164: H for only 30min
A165: 147.166 | B165: Accepted | C165: NA | D165: Social Energy Limited | E165: SOC4-FFR | F165: DNO connection | G165: DSF: Storage (onsite) | H165: 2022-03-31 | I165: 2022-04-30 | J165: 31.03.22 - 30.04.22 (1 months) | K165: As per FFR framework agreement | L165: 2300 | M165: 1100 | N165: 12 | O165: 2300 | P165: 1100 | Q165: 12 | R165: 2300 | S165: 1100 | T165: 12 | U165: 11.35 | AC165: 0.4 | AD165: 1 | AE165: 1 | AF165: 0.4 | AG165: 1 | AH165: 0.4 | AI165: 1 | AL165: C | AQ165: H for only 30min
A166: 147.167 | B166: Accepted | C166: NA | D166: Social Energy Limited | E166: SOC4-FFR | F166: DNO connection | G166: DSF: Storage (onsite) | H166: 2022-04-01 | I166: 2022-04-30 | J166: 01.04.22 - 30.04.22 (1 months) | K166: As per FFR framework agreement | L166: 1900 | M166: 2300 | N166: 4 | O166: 1900 | P166: 2300 | Q166: 4 | R166: 1900 | S166: 2300 | T166: 4 | U166: 11.35 | AC166: 0.4 | AD166: 1 | AE166: 1 | AF166: 0.4 | AG166: 1 | AH166: 0.4 | AI166: 1 | AL166: C | AQ166: H for only 30min
A167: 147.168 | B167: Rejected | C167: 2 | D167: Social Energy Limited | E167: SOC4-FFR | F167: DNO connection | G167: DSF: Storage (onsite) | H167: 2022-04-01 | I167: 2022-04-30 | J167: 01.04.22 - 30.04.22 (1 months) | K167: As per FFR framework agreement | L167: 1100 | M167: 1900 | N167: 8 | O167: 1100 | P167: 1900 | Q167: 8 | R167: 1100 | S167: 1900 | T167: 8 | U167: 46.4 | AC167: 0.4 | AD167: 1 | AE167: 1 | AF167: 0.4 | AG167: 1 | AH167: 0.4 | AI167: 1 | AQ167: H for only 30min
A168: 147.169 | B168: Accepted | C168: NA | D168: Social Energy Limited | E168: SOC5-FFR | F168: DNO connection | G168: DSF: Storage (onsite) | H168: 2022-03-31 | I168: 2022-04-30 | J168: 31.03.22 - 30.04.22 (1 months) | K168: As per FFR framework agreement | L168: 2300 | M168: 1100 | N168: 12 | O168: 2300 | P168: 1100 | Q168: 12 | R168: 2300 | S168: 1100 | T168: 12 | U168: 11.43 | AC168: 0.4 | AD168: 1 | AE168: 1 | AF168: 0.4 | AG168: 1 | AH168: 0.4 | AI168: 1 | AL168: D | AQ168: H for only 30min
A169: 147.17 | B169: Accepted | C169: NA | D169: Social Energy Limited | E169: SOC5-FFR | F169: DNO connection | G169: DSF: Storage (onsite) | H169: 2022-04-01 | I169: 2022-04-30 | J169: 01.04.22 - 30.04.22 (1 months) | K169: As per FFR framework agreement | L169: 1900 | M169: 2300 | N169: 4 | O169: 1900 | P169: 2300 | Q169: 4 | R169: 1900 | S169: 2300 | T169: 4 | U169: 11.43 | AC169: 0.4 | AD169: 1 | AE169: 1 | AF169: 0.4 | AG169: 1 | AH169: 0.4 | AI169: 1 | AL169: D | AQ169: H for only 30min
A170: 147.171 | B170: Rejected | C170: 2 | D170: Social Energy Limited | E170: SOC5-FFR | F170: DNO connection | G170: DSF: Storage (onsite) | H170: 2022-04-01 | I170: 2022-04-30 | J170: 01.04.22 - 30.04.22 (1 months) | K170: As per FFR framework agreement | L170: 1100 | M170: 1900 | N170: 8 | O170: 1100 | P170: 1900 | Q170: 8 | R170: 1100 | S170: 1900 | T170: 8 | U170: 46.4 | AC170: 0.4 | AD170: 1 | AE170: 1 | AF170: 0.4 | AG170: 1 | AH170: 0.4 | AI170: 1 | AQ170: H for only 30min
A171: 147.172 | B171: Accepted | C171: NA | D171: Social Energy Limited | E171: SOC6-FFR | F171: DNO connection | G171: DSF: Storage (onsite) | H171: 2022-03-31 | I171: 2022-04-30 | J171: 31.03.22 - 30.04.22 (1 months) | K171: As per FFR framework agreement | L171: 2300 | M171: 1100 | N171: 12 | O171: 2300 | P171: 1100 | Q171: 12 | R171: 2300 | S171: 1100 | T171: 12 | U171: 11.51 | AC171: 0.4 | AD171: 1 | AE171: 1 | AF171: 0.4 | AG171: 1 | AH171: 0.4 | AI171: 1 | AL171: E | AQ171: H for only 30min
A172: 147.173 | B172: Accepted | C172: NA | D172: Social Energy Limited | E172: SOC6-FFR | F172: DNO connection | G172: DSF: Storage (onsite) | H172: 2022-04-01 | I172: 2022-04-30 | J172: 01.04.22 - 30.04.22 (1 months) | K172: As per FFR framework agreement | L172: 1900 | M172: 2300 | N172: 4 | O172: 1900 | P172: 2300 | Q172: 4 | R172: 1900 | S172: 2300 | T172: 4 | U172: 11.51 | AC172: 0.4 | AD172: 1 | AE172: 1 | AF172: 0.4 | AG172: 1 | AH172: 0.4 | AI172: 1 | AL172: E | AQ172: H for only 30min
A173: 147.174 | B173: Rejected | C173: 2 | D173: Social Energy Limited | E173: SOC6-FFR | F173: DNO connection | G173: DSF: Storage (onsite) | H173: 2022-04-01 | I173: 2022-04-30 | J173: 01.04.22 - 30.04.22 (1 months) | K173: As per FFR framework agreement | L173: 1100 | M173: 1900 | N173: 8 | O173: 1100 | P173: 1900 | Q173: 8 | R173: 1100 | S173: 1900 | T173: 8 | U173: 46.4 | AC173: 0.4 | AD173: 1 | AE173: 1 | AF173: 0.4 | AG173: 1 | AH173: 0.4 | AI173: 1 | AQ173: H for only 30min
A174: 147.175 | B174: Accepted | C174: NA | D174: Social Energy Limited | E174: SOC7-FFR | F174: DNO connection | G174: DSF: Storage (onsite) | H174: 2022-03-31 | I174: 2022-04-30 | J174: 31.03.22 - 30.04.22 (1 months) | K174: As per FFR framework agreement | L174: 2300 | M174: 1100 | N174: 12 | O174: 2300 | P174: 1100 | Q174: 12 | R174: 2300 | S174: 1100 | T174: 12 | U174: 11.64 | AC174: 0.4 | AD174: 1 | AE174: 1 | AF174: 0.4 | AG174: 1 | AH174: 0.4 | AI174: 1 | AL174: F | AQ174: H for only 30min
A175: 147.176 | B175: Accepted | C175: NA | D175: Social Energy Limited | E175: SOC7-FFR | F175: DNO connection | G175: DSF: Storage (onsite) | H175: 2022-04-01 | I175: 2022-04-30 | J175: 01.04.22 - 30.04.22 (1 months) | K175: As per FFR framework agreement | L175: 1900 | M175: 2300 | N175: 4 | O175: 1900 | P175: 2300 | Q175: 4 | R175: 1900 | S175: 2300 | T175: 4 | U175: 11.64 | AC175: 0.4 | AD175: 1 | AE175: 1 | AF175: 0.4 | AG175: 1 | AH175: 0.4 | AI175: 1 | AL175: F | AQ175: H for only 30min
A176: 147.177 | B176: Rejected | C176: 2 | D176: Social Energy Limited | E176: SOC7-FFR | F176: DNO connection | G176: DSF: Storage (onsite) | H176: 2022-04-01 | I176: 2022-04-30 | J176: 01.04.22 - 30.04.22 (1 months) | K176: As per FFR framework agreement | L176: 1100 | M176: 1900 | N176: 8 | O176: 1100 | P176: 1900 | Q176: 8 | R176: 1100 | S176: 1900 | T176: 8 | U176: 46.4 | AC176: 0.4 | AD176: 1 | AE176: 1 | AF176: 0.4 | AG176: 1 | AH176: 0.4 | AI176: 1 | AQ176: H for only 30min
A177: 147.178 | B177: Accepted | C177: NA | D177: Social Energy Limited | E177: SOC9-FFR | F177: DNO connection | G177: DSF: Storage (onsite) | H177: 2022-03-31 | I177: 2022-04-30 | J177: 31.03.22 - 30.04.22 (1 months) | K177: As per FFR framework agreement | L177: 2300 | M177: 1100 | N177: 12 | O177: 2300 | P177: 1100 | Q177: 12 | R177: 2300 | S177: 1100 | T177: 12 | U177: 11.86 | AC177: 0.4 | AD177: 1 | AE177: 1 | AF177: 0.4 | AG177: 1 | AH177: 0.4 | AI177: 1 | AL177: G | AQ177: H for only 30min
A178: 147.179 | B178: Accepted | C178: NA | D178: Social Energy Limited | E178: SOC9-FFR | F178: DNO connection | G178: DSF: Storage (onsite) | H178: 2022-04-01 | I178: 2022-04-30 | J178: 01.04.22 - 30.04.22 (1 months) | K178: As per FFR framework agreement | L178: 1900 | M178: 2300 | N178: 4 | O178: 1900 | P178: 2300 | Q178: 4 | R178: 1900 | S178: 2300 | T178: 4 | U178: 11.86 | AC178: 0.4 | AD178: 1 | AE178: 1 | AF178: 0.4 | AG178: 1 | AH178: 0.4 | AI178: 1 | AL178: G | AQ178: H for only 30min
A179: 147.18 | B179: Rejected | C179: 2 | D179: Social Energy Limited | E179: SOC9-FFR | F179: DNO connection | G179: DSF: Storage (onsite) | H179: 2022-04-01 | I179: 2022-04-30 | J179: 01.04.22 - 30.04.22 (1 months) | K179: As per FFR framework agreement | L179: 1100 | M179: 1900 | N179: 8 | O179: 1100 | P179: 1900 | Q179: 8 | R179: 1100 | S179: 1900 | T179: 8 | U179: 46.4 | AC179: 0.4 | AD179: 1 | AE179: 1 | AF179: 0.4 | AG179: 1 | AH179: 0.4 | AI179: 1 | AQ179: H for only 30min
A180: 147.181 | B180: Accepted | C180: NA | D180: Social Energy Limited | E180: SOC10-FFR | F180: DNO connection | G180: DSF: Storage (onsite) | H180: 2022-03-31 | I180: 2022-04-30 | J180: 31.03.22 - 30.04.22 (1 months) | K180: As per FFR framework agreement | L180: 2300 | M180: 1100 | N180: 12 | O180: 2300 | P180: 1100 | Q180: 12 | R180: 2300 | S180: 1100 | T180: 12 | U180: 11.99 | AC180: 0.4 | AD180: 1 | AE180: 1 | AF180: 0.4 | AG180: 1 | AH180: 0.4 | AI180: 1 | AL180: H | AQ180: H for only 30min
A181: 147.182 | B181: Accepted | C181: NA | D181: Social Energy Limited | E181: SOC10-FFR | F181: DNO connection | G181: DSF: Storage (onsite) | H181: 2022-04-01 | I181: 2022-04-30 | J181: 01.04.22 - 30.04.22 (1 months) | K181: As per FFR framework agreement | L181: 1900 | M181: 2300 | N181: 4 | O181: 1900 | P181: 2300 | Q181: 4 | R181: 1900 | S181: 2300 | T181: 4 | U181: 11.99 | AC181: 0.4 | AD181: 1 | AE181: 1 | AF181: 0.4 | AG181: 1 | AH181: 0.4 | AI181: 1 | AL181: H | AQ181: H for only 30min
A182: 147.183 | B182: Rejected | C182: 2 | D182: Social Energy Limited | E182: SOC10-FFR | F182: DNO connection | G182: DSF: Storage (onsite) | H182: 2022-04-01 | I182: 2022-04-30 | J182: 01.04.22 - 30.04.22 (1 months) | K182: As per FFR framework agreement | L182: 1100 | M182: 1900 | N182: 8 | O182: 1100 | P182: 1900 | Q182: 8 | R182: 1100 | S182: 1900 | T182: 8 | U182: 46.4 | AC182: 0.4 | AD182: 1 | AE182: 1 | AF182: 0.4 | AG182: 1 | AH182: 0.4 | AI182: 1 | AQ182: H for only 30min
A183: 147.184 | B183: Accepted | C183: NA | D183: Statkraft Markets GmbH | E183: SKFT-1 | F183: DNO Connection | G183: DSF: Storage (for export) | H183: 2022-03-31 | I183: 2022-04-30 | J183: 31.03.22 - 30.04.22 (1 months) | K183: As per FFR framework agreement | L183: 2300 | M183: 700 | N183: =IF(L183>M183, (2400-L183+M183)/100, IF(AND(L183="",M183="",L183=M183), "", IF(L183=M183,24,(M183-L183)/100))) -> 8 | O183: 2300 | P183: 700 | Q183: =IF(O183>P183, (2400-O183+P183)/100, IF(AND(O183="",P183="",O183=P183), "", IF(O183=P183,24,(P183-O183)/100))) -> 8 | R183: 2300 | S183: 700 | T183: =IF(R183>S183, (2400-R183+S183)/100, IF(AND(R183="",S183="",R183=S183), "", IF(R183=S183,24,(S183-R183)/100))) -> 8 | U183: 81 | AC183: 3.6 | AD183: 9 | AE183: 9 | AF183: 3.6 | AG183: 9 | AH183: 3.6 | AI183: 9 | AP183: YO61
A184: 147.185 | B184: Accepted | C184: NA | D184: Statkraft Markets GmbH | E184: SKFT-1 | F184: DNO Connection | G184: DSF: Storage (for export) | H184: 2022-04-01 | I184: 2022-04-30 | J184: 01.04.22 - 30.04.22 (1 months) | K184: As per FFR framework agreement | L184: 1500 | M184: 2300 | N184: 8 | O184: 1500 | P184: 2300 | Q184: 8 | R184: 1500 | S184: 2300 | T184: 8 | U184: 198 | AC184: 3.6 | AD184: 9 | AE184: 9 | AF184: 3.6 | AG184: 9 | AH184: 3.6 | AI184: 9 | AP184: YO61
A185: 147.186 | B185: Accepted | C185: NA | D185: Statkraft Markets GmbH | E185: AG-JSTK02 | F185: DNO Connection | G185: DSF: Storage (for export) | H185: 2022-03-31 | I185: 2022-04-30 | J185: 31.03.22 - 30.04.22 (1 months) | K185: As per FFR framework agreement | L185: 2300 | M185: 700 | N185: 8 | O185: 2300 | P185: 700 | Q185: 8 | R185: 2300 | S185: 700 | T185: 8 | U185: 47.3 | AC185: 2 | AD185: 5 | AE185: 5 | AF185: 2 | AG185: 5 | AH185: 2 | AI185: 5 | AP185: RH4 3
A186: 147.187 | B186: Rejected | C186: 2 | D186: Statkraft Markets GmbH | E186: AG-JSTK02 | F186: DNO Connection | G186: DSF: Storage (for export) | H186: 2022-04-01 | I186: 2022-04-30 | J186: =IFERROR(TEXT(H186,"DD.MM.YY")&" - "&TEXT(I186,"DD.MM.YY")&" ("&DATEDIF(H186,I186+1,"m")&" months)","Tender End Date is Before Start Date") -> 01.04.22 - 30.04.22 (1 months) | K186: As per FFR framework agreement | L186: 700 | M186: 1500 | N186: 8 | O186: 700 | P186: 1500 | Q186: 8 | R186: 700 | S186: 1500 | T186: 8 | U186: 76.1 | AC186: 2 | AD186: 5 | AE186: 5 | AF186: 2 | AG186: 5 | AH186: 2 | AI186: 5 | AP186: RH4 3
A187: 147.188 | B187: Accepted | C187: NA | D187: Statkraft Markets GmbH | E187: AG-JSTK02 | F187: DNO Connection | G187: DSF: Storage (for export) | H187: 2022-04-01 | I187: 2022-04-30 | J187: 01.04.22 - 30.04.22 (1 months) | K187: As per FFR framework agreement | L187: 1500 | M187: 2300 | N187: 8 | O187: 1500 | P187: 2300 | Q187: 8 | R187: 1500 | S187: 2300 | T187: 8 | U187: 97.5 | AC187: 2 | AD187: 5 | AE187: 5 | AF187: 2 | AG187: 5 | AH187: 2 | AI187: 5 | AP187: RH4 3
A188: 147.189 | B188: Accepted | C188: NA | D188: Statkraft Markets GmbH | E188: AG-MSTK01 | F188: DNO Connection | G188: DSF: Storage (for export) | H188: 2022-03-31 | I188: 2022-04-30 | J188: 31.03.22 - 30.04.22 (1 months) | K188: As per FFR framework agreement | L188: 2300 | M188: 700 | N188: 8 | O188: 2300 | P188: 700 | Q188: 8 | R188: 2300 | S188: 700 | T188: 8 | U188: 391.6 | AC188: 17.6 | AD188: 44 | AE188: 44 | AF188: 17.6 | AG188: 44 | AH188: 17.6 | AI188: 44 | AP188: HU16
A189: 147.19 | B189: Accepted | C189: NA | D189: Statkraft Markets GmbH | E189: AG-MSTK01 | F189: DNO Connection | G189: DSF: Storage (for export) | H189: 2022-04-01 | I189: 2022-04-30 | J189: 01.04.22 - 30.04.22 (1 months) | K189: As per FFR framework agreement | L189: 700 | M189: 1500 | N189: 8 | O189: 700 | P189: 1500 | Q189: 8 | R189: 700 | S189: 1500 | T189: 8 | U189: 374 | AC189: 17.6 | AD189: 44 | AE189: 44 | AF189: 17.6 | AG189: 44 | AH189: 17.6 | AI189: 44 | AP189: HU16
A190: 147.191 | B190: Accepted | C190: NA | D190: Statkraft Markets GmbH | E190: AG-MSTK01 | F190: DNO Connection | G190: DSF: Storage (for export) | H190: 2022-04-01 | I190: 2022-04-30 | J190: 01.04.22 - 30.04.22 (1 months) | K190: As per FFR framework agreement | L190: 1500 | M190: 2300 | N190: 8 | O190: 1500 | P190: 2300 | Q190: 8 | R190: 1500 | S190: 2300 | T190: 8 | U190: 990 | AC190: 17.6 | AD190: 44 | AE190: 44 | AF190: 17.6 | AG190: 44 | AH190: 17.6 | AI190: 44 | AP190: HU16
A191: 147.192 | B191: Accepted | C191: NA | D191: Statkraft Markets GmbH | E191: AG-ASTK05 | F191: DNO Connection | G191: DSF: Storage (for export) | H191: 2022-03-31 | I191: 2022-04-30 | J191: 31.03.22 - 30.04.22 (1 months) | K191: As per FFR framework agreement | L191: 2300 | M191: 700 | N191: 8 | O191: 2300 | P191: 700 | Q191: 8 | R191: 2300 | S191: 700 | T191: 8 | U191: 374 | AC191: 17.6 | AD191: 44 | AE191: 44 | AF191: 17.6 | AG191: 44 | AH191: 17.6 | AI191: 44 | AP191: SG9 0
A192: 147.193 | B192: Accepted | C192: NA | D192: Statkraft Markets GmbH | E192: AG-ASTK05 | F192: DNO Connection | G192: DSF: Storage (for export) | H192: 2022-04-01 | I192: 2022-04-30 | J192: 01.04.22 - 30.04.22 (1 months) | K192: As per FFR framework agreement | L192: 700 | M192: 1500 | N192: 8 | O192: 700 | P192: 1500 | Q192: 8 | R192: 700 | S192: 1500 | T192: 8 | U192: 347.6 | AC192: 17.6 | AD192: 44 | AE192: 44 | AF192: 17.6 | AG192: 44 | AH192: 17.6 | AI192: 44 | AP192: SG9 0
A193: =A192+0.001 -> 147.194 | B193: Accepted | C193: NA | D193: Statkraft Markets GmbH | E193: AG-ASTK05 | F193: DNO Connection | G193: DSF: Storage (for export) | H193: 2022-04-01 | I193: 2022-04-30 | J193: 01.04.22 - 30.04.22 (1 months) | K193: As per FFR framework agreement | L193: 1500 | M193: 2300 | N193: 8 | O193: 1500 | P193: 2300 | Q193: 8 | R193: 1500 | S193: 2300 | T193: 8 | U193: 858 | AC193: 17.6 | AD193: 44 | AE193: 44 | AF193: 17.6 | AG193: 44 | AH193: 17.6 | AI193: 44 | AP193: SG9 0
A194: 147.195 | B194: Rejected | C194: 2 | D194: Tesla Motors Limited | E194: E_BHOLB-1 | F194: DNO connection | G194: Battery | H194: =H193 -> 2022-04-01 | I194: 2022-04-30 | J194: 01.04.22 - 30.04.22 (1 months) | K194: As per FFR framework agreement | L194: 2300 | M194: 700 | N194: 8 | O194: 2300 | P194: 700 | Q194: 8 | R194: 2300 | S194: 700 | T194: 8 | U194: 172.8 | V194: - | W194: - | X194: Yes | Y194: - | Z194: - | AA194: - | AB194: - | AC194: 2.8 | AD194: 7 | AE194: 7 | AF194: 2.8 | AG194: 7 | AH194: 2.8 | AI194: 7 | AJ194: - | AK194: - | AL194: A | AM194: - | AP194: BH15
A195: 147.196 | B195: Rejected | C195: 2 | D195: Tesla Motors Limited | E195: E_BHOLB-1 | F195: DNO connection | G195: Battery | H195: 2022-04-01 | I195: 2022-04-30 | J195: 01.04.22 - 30.04.22 (1 months) | K195: As per FFR framework agreement | L195: 700 | M195: 1500 | N195: 8 | O195: 700 | P195: 1500 | Q195: 8 | R195: 700 | S195: 1500 | T195: 8 | U195: 81.82 | V195: - | W195: - | X195: Yes | AC195: 2.4 | AD195: 6 | AE195: 6 | AF195: 2.4 | AG195: 6 | AH195: 2.4 | AI195: 6 | AL195: B | AP195: BH15
A196: 147.197 | B196: Rejected | C196: 2 | D196: Tesla Motors Limited | E196: E_BHOLB-1 | F196: DNO connection | G196: Battery | H196: 2022-04-01 | I196: 2022-04-30 | J196: 01.04.22 - 30.04.22 (1 months) | K196: As per FFR framework agreement | L196: 1500 | M196: 2300 | N196: 8 | O196: 1500 | P196: 2300 | Q196: 8 | R196: 1500 | S196: 2300 | T196: 8 | U196: 419.93 | V196: - | W196: - | X196: Yes | AC196: 2.8 | AD196: 7 | AE196: 7 | AF196: 2.8 | AG196: 7 | AH196: 2.8 | AI196: 7 | AL196: C | AP196: BH15
A197: 147.198 | B197: Rejected | C197: 2 | D197: Tesla Motors Limited | E197: E_CONTB-1 | F197: DNO connection | G197: Battery | H197: 2022-04-01 | I197: 2022-04-30 | J197: 01.04.22 - 30.04.22 (1 months) | K197: As per FFR framework agreement | L197: 2300 | M197: 700 | N197: 8 | O197: 2300 | P197: 700 | Q197: 8 | R197: 2300 | S197: 700 | T197: 8 | U197: 750.95 | V197: - | W197: - | X197: Yes | AC197: 13.6 | AD197: 34 | AE197: 34 | AF197: 13.6 | AG197: 34 | AH197: 13.6 | AI197: 34 | AL197: D | AP197: BN6 9
A198: 147.199 | B198: Rejected | C198: 2 | D198: Tesla Motors Limited | E198: E_CONTB-1 | F198: DNO connection | G198: Battery | H198: 2022-04-01 | I198: 2022-04-30 | J198: 01.04.22 - 30.04.22 (1 months) | K198: As per FFR framework agreement | L198: 700 | M198: 1500 | N198: 8 | O198: 700 | P198: 1500 | Q198: 8 | R198: 700 | S198: 1500 | T198: 8 | U198: 467.61 | V198: - | W198: - | X198: Yes | AC198: 12 | AD198: 30 | AE198: 30 | AF198: 12 | AG198: 30 | AH198: 12 | AI198: 30 | AL198: E | AP198: BN6 9
A199: 147.2 | B199: Rejected | C199: 2 | D199: Tesla Motors Limited | E199: E_CONTB-1 | F199: DNO connection | G199: Battery | H199: 2022-04-01 | I199: 2022-04-30 | J199: 01.04.22 - 30.04.22 (1 months) | K199: As per FFR framework agreement | L199: 1500 | M199: 2300 | N199: 8 | O199: 1500 | P199: 2300 | Q199: 8 | R199: 1500 | S199: 2300 | T199: 8 | U199: 2107.66 | V199: - | W199: - | X199: Yes | AC199: 13.6 | AD199: 34 | AE199: 34 | AF199: 13.6 | AG199: 34 | AH199: 13.6 | AI199: 34 | AL199: F | AP199: BN6 9
A200: 147.201 | B200: Accepted | C200: NA | D200: Upside Energy | E200: UPEN-3 | F200: DNO connection | G200: DSF: Storage (onsite) | H200: 2022-03-31 | I200: 2022-04-30 | J200: 31.03.22 - 30.04.22 (1 months) | K200: As per FFR framework agreement | L200: 2300 | M200: 300 | N200: =IF(L200>M200, (2400-L200+M200)/100, IF(AND(L200="",M200="",L200=M200), "", IF(L200=M200,24,(M200-L200)/100))) -> 4 | O200: 2300 | P200: 300 | Q200: =IF(O200>P200, (2400-O200+P200)/100, IF(AND(O200="",P200="",O200=P200), "", IF(O200=P200,24,(P200-O200)/100))) -> 4 | R200: 2300 | S200: 300 | T200: =IF(R200>S200, (2400-R200+S200)/100, IF(AND(R200="",S200="",R200=S200), "", IF(R200=S200,24,(S200-R200)/100))) -> 4 | U200: 12 | AC200: 0.4 | AD200: 1 | AE200: 1 | AF200: 0.4 | AG200: 1 | AH200: 0.4 | AI200: 1 | AL200: A | AP200: EH48
... 27 more rows
